Workbook

Sheet Symbols
D2: =IF(Symbols!D4="B","B",IF(Symbols!D4=0,0,IF(Symbols!D4=1,"#.0",IF(Symbols!D4=2,"#.00",IF(Symbols!D4=3,"#.000",IF(Symbols!D4=4,"#.0000",IF(Symbols!D4=5,"#.00000",IF(Symbols!D4=6,"#.000000")))))))) -> #.00 | E2: =IF(Symbols!E4="B","B",IF(Symbols!E4=0,0,IF(Symbols!E4=1,"#.0",IF(Symbols!E4=2,"#.00",IF(Symbols!E4=3,"#.000",IF(Symbols!E4=4,"#.0000",IF(Symbols!E4=5,"#.00000",IF(Symbols!E4=6,"#.000000")))))))) -> 0 | F2: =IF(Symbols!F4="B","B",IF(Symbols!F4=0,0,IF(Symbols!F4=1,"#.0",IF(Symbols!F4=2,"#.00",IF(Symbols!F4=3,"#.000",IF(Symbols!F4=4,"#.0000",IF(Symbols!F4=5,"#.00000",IF(Symbols!F4=6,"#.000000")))))))) -> 0 | G2: =IF(Symbols!G4="B","B",IF(Symbols!G4=0,0,IF(Symbols!G4=1,"#.0",IF(Symbols!G4=2,"#.00",IF(Symbols!G4=3,"#.000",IF(Symbols!G4=4,"#.0000",IF(Symbols!G4=5,"#.00000",IF(Symbols!G4=6,"#.000000")))))))) -> #.00 | H2: =IF(Symbols!H4="B","B",IF(Symbols!H4=0,0,IF(Symbols!H4=1,"#.0",IF(Symbols!H4=2,"#.00",IF(Symbols!H4=3,"#.000",IF(Symbols!H4=4,"#.0000",IF(Symbols!H4=5,"#.00000",IF(Symbols!H4=6,"#.000000")))))))) -> #.00 | I2: =IF(Symbols!I4="B","B",IF(Symbols!I4=0,0,IF(Symbols!I4=1,"#.0",IF(Symbols!I4=2,"#.00",IF(Symbols!I4=3,"#.000",IF(Symbols!I4=4,"#.0000",IF(Symbols!I4=5,"#.00000",IF(Symbols!I4=6,"#.000000")))))))) -> #.00 | J2: =IF(Symbols!J4="B","B",IF(Symbols!J4=0,0,IF(Symbols!J4=1,"#.0",IF(Symbols!J4=2,"#.00",IF(Symbols!J4=3,"#.000",IF(Symbols!J4=4,"#.0000",IF(Symbols!J4=5,"#.00000",IF(Symbols!J4=6,"#.000000")))))))) -> #.000 | K2: =IF(Symbols!K4="B","B",IF(Symbols!K4=0,0,IF(Symbols!K4=1,"#.0",IF(Symbols!K4=2,"#.00",IF(Symbols!K4=3,"#.000",IF(Symbols!K4=4,"#.0000",IF(Symbols!K4=5,"#.00000",IF(Symbols!K4=6,"#.000000")))))))) -> #.000 | L2: =IF(Symbols!L4="B","B",IF(Symbols!L4=0,0,IF(Symbols!L4=1,"#.0",IF(Symbols!L4=2,"#.00",IF(Symbols!L4=3,"#.000",IF(Symbols!L4=4,"#.0000",IF(Symbols!L4=5,"#.00000",IF(Symbols!L4=6,"#.000000")))))))) -> #.00 | M2: =IF(Symbols!M4="B","B",IF(Symbols!M4=0,0,IF(Symbols!M4=1,"#.0",IF(Symbols!M4=2,"#.00",IF(Symbols!M4=3,"#.000",IF(Symbols!M4=4,"#.0000",IF(Symbols!M4=5,"#.00000",IF(Symbols!M4=6,"#.000000")))))))) -> #.00 | N2: =IF(Symbols!N4="B","B",IF(Symbols!N4=0,0,IF(Symbols!N4=1,"#.0",IF(Symbols!N4=2,"#.00",IF(Symbols!N4=3,"#.000",IF(Symbols!N4=4,"#.0000",IF(Symbols!N4=5,"#.00000",IF(Symbols!N4=6,"#.000000")))))))) -> 0
B3: Symbols | D3: DD | E3: DSX | F3: YM | G3: PIL | H3: CLE | I3: PLE | J3: RBE | K3: NGE | L3: TFE | M3: QFA
C4: Decimals | D4: 2 | E4: 0 | F4: 0 | G4: 2 | H4: 2 | I4: 2 | J4: 3 | K4: 3 | L4: 2 | M4: 2
B5: EP | C5: 2 | D5: =IF(Symbols!C5="B","B",IF(Symbols!C5=0,0,IF(Symbols!C5=1,"#.0",IF(Symbols!C5=2,"#.00",IF(Symbols!C5=3,"#.000",IF(Symbols!C5=4,"#.0000",IF(Symbols!C5=5,"#.00000",IF(Symbols!C5=6,"#.000000")))))))) -> #.00
B6: ENQ | C6: 2 | D6: =IF(Symbols!C6="B","B",IF(Symbols!C6=0,0,IF(Symbols!C6=1,"#.0",IF(Symbols!C6=2,"#.00",IF(Symbols!C6=3,"#.000",IF(Symbols!C6=4,"#.0000",IF(Symbols!C6=5,"#.00000",IF(Symbols!C6=6,"#.000000")))))))) -> #.00 | E6: Enter in, using all capitals, the symbols in the column to the left for the symbols in the first column of the Correlation matrix. This will also be the top row
B7: EMD | C7: 2 | D7: =IF(Symbols!C7="B","B",IF(Symbols!C7=0,0,IF(Symbols!C7=1,"#.0",IF(Symbols!C7=2,"#.00",IF(Symbols!C7=3,"#.000",IF(Symbols!C7=4,"#.0000",IF(Symbols!C7=5,"#.00000",IF(Symbols!C7=6,"#.000000")))))))) -> #.00 | E7: of market information on the main display. For price formatting, enter in the number of decimals or B for bonds and grains.
B8: GCE | C8: 2 | D8: =IF(Symbols!C8="B","B",IF(Symbols!C8=0,0,IF(Symbols!C8=1,"#.0",IF(Symbols!C8=2,"#.00",IF(Symbols!C8=3,"#.000",IF(Symbols!C8=4,"#.0000",IF(Symbols!C8=5,"#.00000",IF(Symbols!C8=6,"#.000000")))))))) -> #.00
B9: DXE | C9: 2 | D9: =IF(Symbols!C9="B","B",IF(Symbols!C9=0,0,IF(Symbols!C9=1,"#.0",IF(Symbols!C9=2,"#.00",IF(Symbols!C9=3,"#.000",IF(Symbols!C9=4,"#.0000",IF(Symbols!C9=5,"#.00000",IF(Symbols!C9=6,"#.000000")))))))) -> #.00 | E9: Enter in, using all capitals, the symbols in the the top row above for the symbols along the top of the Correlation matrix. This will also be the bottom row
B10: EU6 | C10: 4 | D10: =IF(Symbols!C10="B","B",IF(Symbols!C10=0,0,IF(Symbols!C10=1,"#.0",IF(Symbols!C10=2,"#.00",IF(Symbols!C10=3,"#.000",IF(Symbols!C10=4,"#.0000",IF(Symbols!C10=5,"#.00000",IF(Symbols!C10=6,"#.000000")))))))) -> #.0000 | E10: of market information on the main display. Enter in the number of decimals or B for bonds and grains.
B11: JY6 | C11: 6 | D11: =IF(Symbols!C11="B","B",IF(Symbols!C11=0,0,IF(Symbols!C11=1,"#.0",IF(Symbols!C11=2,"#.00",IF(Symbols!C11=3,"#.000",IF(Symbols!C11=4,"#.0000",IF(Symbols!C11=5,"#.00000",IF(Symbols!C11=6,"#.000000")))))))) -> #.000000
B12: DA6 | C12: 4 | D12: =IF(Symbols!C12="B","B",IF(Symbols!C12=0,0,IF(Symbols!C12=1,"#.0",IF(Symbols!C12=2,"#.00",IF(Symbols!C12=3,"#.000",IF(Symbols!C12=4,"#.0000",IF(Symbols!C12=5,"#.00000",IF(Symbols!C12=6,"#.000000")))))))) -> #.0000 | E12: Click the "Chart" toolbar button on the Correlation matrix on the main display to change the scattergram chart to display
B13: BP6 | C13: 4 | D13: =IF(Symbols!C13="B","B",IF(Symbols!C13=0,0,IF(Symbols!C13=1,"#.0",IF(Symbols!C13=2,"#.00",IF(Symbols!C13=3,"#.000",IF(Symbols!C13=4,"#.0000",IF(Symbols!C13=5,"#.00000",IF(Symbols!C13=6,"#.000000")))))))) -> #.0000 | E13: that row of correlation values relative to the market in the same row listed in the first column.
B14: MX6 | C14: 6 | D14: =IF(Symbols!C14="B","B",IF(Symbols!C14=0,0,IF(Symbols!C14=1,"#.0",IF(Symbols!C14=2,"#.00",IF(Symbols!C14=3,"#.000",IF(Symbols!C14=4,"#.0000",IF(Symbols!C14=5,"#.00000",IF(Symbols!C14=6,"#.000000")))))))) -> #.000000
E15: Enter in the time frame and look back period for the correlation analysis. The ranked correlation histogram bar chart will also used these parameters.

Sheet MainDisplay
S1: =Data!C2 -> DD | U1: =Data!D2 -> DSX | V1: =Data!E2 -> YM | X1: =Data!F2 -> PIL | Y1: =Data!G2 -> CLE | AA1: =Data!H2 -> PLE | AB1: =Data!I2 -> RBE | AD1: =Data!J2 -> NGE | AE1: =Data!K2 -> TFE | AG1: =Data!L2 -> QFA
B2: 15 | C2: 15 | E2: CQG Correlation Dashboard
C3: 65
A4: =INDIRECT("Data!H"&$B$2) -> EP vs YM | B4: =INDIRECT("Data!J"&$B$2) -> 0.9565935308 | C4: =INDIRECT("Data!K"&$B$2) ->  | D4: =INDIRECT("Data!L"&$B$2) -> 0.9565935308 | E4: =RTD("cqg.rtd", ,"ContractData",Symbols!B5, "LongDescription",, "T") -> E-Mini S&P 500, Jun 15 | H4: =RTD("cqg.rtd", ,"ContractData",Symbols!B6, "LongDescription",, "T") -> E-mini NASDAQ-100, Jun 15 | K4: =RTD("cqg.rtd", ,"ContractData",Symbols!B7, "LongDescription",, "T") -> E-mini MidCap 400, Jun 15 | N4: =RTD("cqg.rtd", ,"ContractData",Symbols!B8, "LongDescription",, "T") -> Gold (Globex), Jun 15 | Q4: =RTD("cqg.rtd", ,"ContractData",Symbols!B9, "LongDescription",, "T") -> Dollar Index (ICE), Jun 15 | T4: =RTD("cqg.rtd", ,"ContractData",Symbols!B10, "LongDescription",, "T") -> Euro FX (Globex), Jun 15 | W4: =RTD("cqg.rtd", ,"ContractData",Symbols!B11, "LongDescription",, "T") -> Japanese Yen (Globex), Jun 15 | Z4: =RTD("cqg.rtd", ,"ContractData",Symbols!B12, "LongDescription",, "T") -> Australian Dollar (Globex), Jun 15 | AC4: =RTD("cqg.rtd", ,"ContractData",Symbols!B13, "LongDescription",, "T") -> British Pound (Globex), Jun 15 | AF4: =RTD("cqg.rtd", ,"ContractData",Symbols!B14, "LongDescription",, "T") -> Mexican Peso (Globex), Jun 15
A5: =INDIRECT("Data!H"&$B$2+1) -> EMD vs TFE | B5: =INDIRECT("Data!J"&$B$2+1) -> 0.9414160162 | C5: =INDIRECT("Data!K"&$B$2+1) ->  | D5: =INDIRECT("Data!L"&$B$2+1) -> 0.9414160162 | E5: =IF(Symbols!C5="B",RTD("cqg.rtd",,"ContractData",Symbols!B5,"LastTrade",,"B"),TEXT(RTD("cqg.rtd",,"ContractData",Symbols!B5,"LastTrade",,"T"),Symbols!D5)) -> 2112.25 | H5: =IF(Symbols!C6="B",RTD("cqg.rtd",,"ContractData",Symbols!B6,"LastTrade",,"B"),TEXT(RTD("cqg.rtd",,"ContractData",Symbols!B6,"LastTrade",,"T"),Symbols!D6)) -> 4488.75 | K5: =IF(Symbols!C7="B",RTD("cqg.rtd",,"ContractData",Symbols!B7,"LastTrade",,"B"),TEXT(RTD("cqg.rtd",,"ContractData",Symbols!B7,"LastTrade",,"T"),Symbols!D7)) -> 1519.10 | N5: =IF(Symbols!C8="B",RTD("cqg.rtd",,"ContractData",Symbols!B8,"LastTrade",,"B"),TEXT(RTD("cqg.rtd",,"ContractData",Symbols!B8,"LastTrade",,"T"),Symbols!D8)) -> 1188.60 | Q5: =IF(Symbols!C9="B",RTD("cqg.rtd",,"ContractData",Symbols!B9,"LastTrade",,"B"),TEXT(RTD("cqg.rtd",,"ContractData",Symbols!B9,"LastTrade",,"T"),Symbols!D9)) -> 95.65 | T5: =IF(Symbols!C10="B",RTD("cqg.rtd",,"ContractData",Symbols!B10,"LastTrade",,"B"),TEXT(RTD("cqg.rtd",,"ContractData",Symbols!B10,"LastTrade",,"T"),Symbols!D10)) -> 1.1144 | W5: =IF(Symbols!C11="B",RTD("cqg.rtd",,"ContractData",Symbols!B11,"LastTrade",,"B"),TEXT(RTD("cqg.rtd",,"ContractData",Symbols!B11,"LastTrade",,"T"),Symbols!D11)) -> .008331 | Z5: =IF(Symbols!C12="B",RTD("cqg.rtd",,"ContractData",Symbols!B12,"LastTrade",,"B"),TEXT(RTD("cqg.rtd",,"ContractData",Symbols!B12,"LastTrade",,"T"),Symbols!D12)) -> .7824 | AC5: =IF(Symbols!C13="B",RTD("cqg.rtd",,"ContractData",Symbols!B13,"LastTrade",,"B"),TEXT(RTD("cqg.rtd",,"ContractData",Symbols!B13,"LastTrade",,"T"),Symbols!D13)) -> 1.5108 | AF5: =IF(Symbols!C14="B",RTD("cqg.rtd",,"ContractData",Symbols!B14,"LastTrade",,"B"),TEXT(RTD("cqg.rtd",,"ContractData",Symbols!B14,"LastTrade",,"T"),Symbols!D14)) -> .064520
A6: =INDIRECT("Data!H"&$B$2+2) -> EU6 vs CLE | B6: =INDIRECT("Data!J"&$B$2+2) -> 0.9399985697 | C6: =INDIRECT("Data!K"&$B$2+2) ->  | D6: =INDIRECT("Data!L"&$B$2+2) -> 0.9399985697
A7: =INDIRECT("Data!H"&$B$2+3) -> GCE vs PLE | B7: =INDIRECT("Data!J"&$B$2+3) -> 0.8993703882 | C7: =INDIRECT("Data!K"&$B$2+3) ->  | D7: =INDIRECT("Data!L"&$B$2+3) -> 0.8993703882 | E7: H: | F7: =IF(Symbols!C5="B",RTD("cqg.rtd",,"ContractData",Symbols!B5,"High",,"B"),TEXT(RTD("cqg.rtd",,"ContractData",Symbols!B5,"High",,"T"),Symbols!D5)) -> 2115.00 | G7: =IF(Symbols!C5="B",RTD("cqg.rtd",,"ContractData",Symbols!B5,"NetLastQuoteToday",,"B"),IF(RTD("cqg.rtd",,"ContractData",Symbols!B5,"NetLastQuoteToday",,"T")>0,"+"&TEXT(RTD("cqg.rtd",,"ContractData",Symbols!B5,"NetLastQuoteToday",,"T"),Symbols!D5),TEXT(RTD("cqg.rtd",,"ContractData",Symbols!B5,"NetLastQuoteToday",,"T"),Symbols!D5))) -> +10.75 | H7: H: | I7: =IF(Symbols!C6="B",RTD("cqg.rtd",,"ContractData",Symbols!B6,"High",,"B"),TEXT(RTD("cqg.rtd",,"ContractData",Symbols!B6,"High",,"T"),Symbols!D6)) ->  | J7: =IF(Symbols!C6="B",RTD("cqg.rtd",,"ContractData",Symbols!B6,"NetLastQuoteToday",,"B"),IF(RTD("cqg.rtd",,"ContractData",Symbols!B6,"NetLastQuoteToday",,"T")>0,"+"&TEXT(RTD("cqg.rtd",,"ContractData",Symbols!B6,"NetLastQuoteToday",,"T"),Symbols!D6),TEXT(RTD("cqg.rtd",,"ContractData",Symbols!B6,"NetLastQuoteToday",,"T"),Symbols!D6))) -> + | K7: H: | L7: =IF(Symbols!C7="B",RTD("cqg.rtd",,"ContractData",Symbols!B7,"High",,"B"),TEXT(RTD("cqg.rtd",,"ContractData",Symbols!B7,"High",,"T"),Symbols!D7)) -> 1521.80 | M7: =IF(Symbols!C7="B",RTD("cqg.rtd",,"ContractData",Symbols!B7,"NetLastQuoteToday",,"B"),IF(RTD("cqg.rtd",,"ContractData",Symbols!B7,"NetLastQuoteToday",,"T")>0,"+"&TEXT(RTD("cqg.rtd",,"ContractData",Symbols!B7,"NetLastQuoteToday",,"T"),Symbols!D7),TEXT(RTD("cqg.rtd",,"ContractData",Symbols!B7,"NetLastQuoteToday",,"T"),Symbols!D7))) -> +10.90 | N7: H: | O7: =IF(Symbols!C8="B",RTD("cqg.rtd",,"ContractData",Symbols!B8,"High",,"B"),TEXT(RTD("cqg.rtd",,"ContractData",Symbols!B8,"High",,"T"),Symbols!D8)) ->  | P7: =IF(Symbols!C8="B",RTD("cqg.rtd",,"ContractData",Symbols!B8,"NetLastQuoteToday",,"B"),IF(RTD("cqg.rtd",,"ContractData",Symbols!B8,"NetLastQuoteToday",,"T")>0,"+"&TEXT(RTD("cqg.rtd",,"ContractData",Symbols!B8,"NetLastQuoteToday",,"T"),Symbols!D8),TEXT(RTD("cqg.rtd",,"ContractData",Symbols!B8,"NetLastQuoteToday",,"T"),Symbols!D8))) -> + | Q7: H: | R7: =IF(Symbols!C9="B",RTD("cqg.rtd",,"ContractData",Symbols!B9,"High",,"B"),TEXT(RTD("cqg.rtd",,"ContractData",Symbols!B9,"High",,"T"),Symbols!D9)) ->  | S7: =IF(Symbols!C9="B",RTD("cqg.rtd",,"ContractData",Symbols!B9,"NetLastQuoteToday",,"B"),IF(RTD("cqg.rtd",,"ContractData",Symbols!B9,"NetLastQuoteToday",,"T")>0,"+"&TEXT(RTD("cqg.rtd",,"ContractData",Symbols!B9,"NetLastQuoteToday",,"T"),Symbols!D9),TEXT(RTD("cqg.rtd",,"ContractData",Symbols!B9,"NetLastQuoteToday",,"T"),Symbols!D9))) -> + | T7: H: | U7: =IF(Symbols!C10="B",RTD("cqg.rtd",,"ContractData",Symbols!B10,"High",,"B"),TEXT(RTD("cqg.rtd",,"ContractData",Symbols!B10,"High",,"T"),Symbols!D10)) ->  | V7: =IF(Symbols!C10="B",RTD("cqg.rtd",,"ContractData",Symbols!B10,"NetLastQuoteToday",,"B"),IF(RTD("cqg.rtd",,"ContractData",Symbols!B10,"NetLastQuoteToday",,"T")>0,"+"&TEXT(RTD("cqg.rtd",,"ContractData",Symbols!B10,"NetLastQuoteToday",,"T"),Symbols!D10),TEXT(RTD("cqg.rtd",,"ContractData",Symbols!B10,"NetLastQuoteToday",,"T"),Symbols!D10))) -> + | W7: H: | X7: =IF(Symbols!C8="B",RTD("cqg.rtd",,"ContractData",Symbols!B8,"High",,"B"),TEXT(RTD("cqg.rtd",,"ContractData",Symbols!B8,"High",,"T"),Symbols!D8)) ->  | Y7: =IF(Symbols!C11="B",RTD("cqg.rtd",,"ContractData",Symbols!B11,"NetLastQuoteToday",,"B"),IF(RTD("cqg.rtd",,"ContractData",Symbols!B11,"NetLastQuoteToday",,"T")>0,"+"&TEXT(RTD("cqg.rtd",,"ContractData",Symbols!B11,"NetLastQuoteToday",,"T"),Symbols!D11),TEXT(RTD("cqg.rtd",,"ContractData",Symbols!B11,"NetLastQuoteToday",,"T"),Symbols!D5))) -> + | Z7: H: | AA7: =IF(Symbols!C12="B",RTD("cqg.rtd",,"ContractData",Symbols!B12,"High",,"B"),TEXT(RTD("cqg.rtd",,"ContractData",Symbols!B12,"High",,"T"),Symbols!D12)) ->  | AB7: =IF(Symbols!C12="B",RTD("cqg.rtd",,"ContractData",Symbols!B12,"NetLastQuoteToday",,"B"),IF(RTD("cqg.rtd",,"ContractData",Symbols!B12,"NetLastQuoteToday",,"T")>0,"+"&TEXT(RTD("cqg.rtd",,"ContractData",Symbols!B12,"NetLastQuoteToday",,"T"),Symbols!D12),TEXT(RTD("cqg.rtd",,"ContractData",Symbols!B12,"NetLastQuoteToday",,"T"),Symbols!D12))) -> + | AC7: H: | AD7: =IF(Symbols!C13="B",RTD("cqg.rtd",,"ContractData",Symbols!B13,"High",,"B"),TEXT(RTD("cqg.rtd",,"ContractData",Symbols!B13,"High",,"T"),Symbols!D13)) ->  | AE7: =IF(Symbols!C13="B",RTD("cqg.rtd",,"ContractData",Symbols!B13,"NetLastQuoteToday",,"B"),IF(RTD("cqg.rtd",,"ContractData",Symbols!B13,"NetLastQuoteToday",,"T")>0,"+"&TEXT(RTD("cqg.rtd",,"ContractData",Symbols!B13,"NetLastQuoteToday",,"T"),Symbols!D13),TEXT(RTD("cqg.rtd",,"ContractData",Symbols!B13,"NetLastQuoteToday",,"T"),Symbols!D12))) -> + | AF7: H: | AG7: =IF(Symbols!C14="B",RTD("cqg.rtd",,"ContractData",Symbols!B14,"High",,"B"),TEXT(RTD("cqg.rtd",,"ContractData",Symbols!B14,"High",,"T"),Symbols!D14)) -> .064630 | AH7: =IF(Symbols!C14="B",RTD("cqg.rtd",,"ContractData",Symbols!B14,"NetLastQuoteToday",,"B"),IF(RTD("cqg.rtd",,"ContractData",Symbols!B14,"NetLastQuoteToday",,"T")>0,"+"&TEXT(RTD("cqg.rtd",,"ContractData",Symbols!B14,"NetLastQuoteToday",,"T"),Symbols!D14),TEXT(RTD("cqg.rtd",,"ContractData",Symbols!B14,"NetLastQuoteToday",,"T"),Symbols!D5))) -> +.000580
A8: =INDIRECT("Data!H"&$B$2+4) -> ENQ vs YM | B8: =INDIRECT("Data!J"&$B$2+4) -> 0.8739087776 | C8: =INDIRECT("Data!K"&$B$2+4) ->  | D8: =INDIRECT("Data!L"&$B$2+4) -> 0.8739087776 | E8: L: | F8: =IF(Symbols!C5="B",RTD("cqg.rtd",,"ContractData",Symbols!B5,"Low",,"B"),TEXT(RTD("cqg.rtd",,"ContractData",Symbols!B5,"Low",,"T"),Symbols!D5)) -> 2098.00 | G8: =IFERROR(RTD("cqg.rtd", ,"ContractData",Symbols!B5, "PerCentNetLastQuote",, "T")/100,"") -> 0.005115393766 | H8: L: | I8: =IF(Symbols!C6="B",RTD("cqg.rtd",,"ContractData",Symbols!B6,"Low",,"B"),TEXT(RTD("cqg.rtd",,"ContractData",Symbols!B6,"Low",,"T"),Symbols!D6)) ->  | J8: =IFERROR(RTD("cqg.rtd", ,"ContractData",Symbols!B6, "PerCentNetLastQuote",, "T")/100,"") ->  | K8: L: | L8: =IF(Symbols!C7="B",RTD("cqg.rtd",,"ContractData",Symbols!B7,"Low",,"B"),TEXT(RTD("cqg.rtd",,"ContractData",Symbols!B7,"Low",,"T"),Symbols!D7)) -> 1506.20 | M8: =IFERROR(RTD("cqg.rtd", ,"ContractData",Symbols!B7, "PerCentNetLastQuote",, "T")/100,"") -> 0.007227158202 | N8: L: | O8: =IF(Symbols!C8="B",RTD("cqg.rtd",,"ContractData",Symbols!B8,"Low",,"B"),TEXT(RTD("cqg.rtd",,"ContractData",Symbols!B8,"Low",,"T"),Symbols!D8)) ->  | P8: =IFERROR(RTD("cqg.rtd", ,"ContractData",Symbols!B8, "PerCentNetLastQuote",, "T")/100,"") ->  | Q8: L: | R8: =IF(Symbols!C9="B",RTD("cqg.rtd",,"ContractData",Symbols!B9,"Low",,"B"),TEXT(RTD("cqg.rtd",,"ContractData",Symbols!B9,"Low",,"T"),Symbols!D9)) ->  | S8: =IFERROR(RTD("cqg.rtd", ,"ContractData",Symbols!B9, "PerCentNetLastQuote",, "T")/100,"") ->  | T8: L: | U8: =IF(Symbols!C10="B",RTD("cqg.rtd",,"ContractData",Symbols!B10,"Low",,"B"),TEXT(RTD("cqg.rtd",,"ContractData",Symbols!B10,"Low",,"T"),Symbols!D10)) ->  | V8: =IFERROR(RTD("cqg.rtd", ,"ContractData",Symbols!B10, "PerCentNetLastQuote",, "T")/100,"") ->  | W8: L: | X8: =IF(Symbols!C11="B",RTD("cqg.rtd",,"ContractData",Symbols!B11,"Low",,"B"),TEXT(RTD("cqg.rtd",,"ContractData",Symbols!B11,"Low",,"T"),Symbols!D11)) ->  | Y8: =IFERROR(RTD("cqg.rtd", ,"ContractData",Symbols!B11, "PerCentNetLastQuote",, "T")/100,"") ->  | Z8: L: | AA8: =IF(Symbols!C12="B",RTD("cqg.rtd",,"ContractData",Symbols!B12,"Low",,"B"),TEXT(RTD("cqg.rtd",,"ContractData",Symbols!B12,"Low",,"T"),Symbols!D12)) ->  | AB8: =IFERROR(RTD("cqg.rtd", ,"ContractData",Symbols!B12, "PerCentNetLastQuote",, "T")/100,"") ->  | AC8: L: | AD8: =IF(Symbols!C13="B",RTD("cqg.rtd",,"ContractData",Symbols!B13,"Low",,"B"),TEXT(RTD("cqg.rtd",,"ContractData",Symbols!B13,"Low",,"T"),Symbols!D13)) ->  | AE8: =IFERROR(RTD("cqg.rtd", ,"ContractData",Symbols!B13, "PerCentNetLastQuote",, "T")/100,"") ->  | AF8: L: | AG8: =IF(Symbols!C14="B",RTD("cqg.rtd",,"ContractData",Symbols!B14,"Low",,"B"),TEXT(RTD("cqg.rtd",,"ContractData",Symbols!B14,"Low",,"T"),Symbols!D14)) -> .063930 | AH8: =IFERROR(RTD("cqg.rtd", ,"ContractData",Symbols!B14, "PerCentNetLastQuote",, "T")/100,"") -> 0.009071004066
A9: =INDIRECT("Data!H"&$B$2+5) -> DXE vs TFE | B9: =INDIRECT("Data!J"&$B$2+5) -> 0.8661741982 | C9: =INDIRECT("Data!K"&$B$2+5) ->  | D9: =INDIRECT("Data!L"&$B$2+5) -> 0.8661741982 | E9: Ranked Correlations | N9: Correlations
A10: =INDIRECT("Data!H"&$B$2+6) -> EMD vs QFA | B10: =INDIRECT("Data!J"&$B$2+6) -> 0.8488217981 | C10: =INDIRECT("Data!K"&$B$2+6) ->  | D10: =INDIRECT("Data!L"&$B$2+6) -> 0.8488217981 | N10: Time Frame | P10: Look Back | U10: =RTD("cqg.rtd", ,"ContractData",Data!D2, "LongDescription",, "T") -> Euro STOXX 50, Jun 15 | X10: =RTD("cqg.rtd", ,"ContractData",Data!F2, "LongDescription",, "T") -> CAC40, May 15 | AA10: =RTD("cqg.rtd", ,"ContractData",Data!H2, "LongDescription",, "T") -> Platinum (Globex), Jul 15 | AD10: =RTD("cqg.rtd", ,"ContractData",Data!J2, "LongDescription",, "T") -> Natural Gas (Globex), Jun 15 | AG10: =RTD("cqg.rtd", ,"ContractData",Data!L2, "LongDescription",, "T") -> FTSE 100 - Stnd Index, Jun 15
A11: =INDIRECT("Data!H"&$B$2+7) -> EU6 vs RBE | B11: =INDIRECT("Data!J"&$B$2+7) -> 0.8487254294 | C11: =INDIRECT("Data!K"&$B$2+7) ->  | D11: =INDIRECT("Data!L"&$B$2+7) -> 0.8487254294 | N11: D | P11: 10 | S11: =RTD("cqg.rtd", ,"ContractData",Data!C2, "LongDescription",, "T") -> DAX Index, Jun 15 | V11: =RTD("cqg.rtd", ,"ContractData",Data!E2, "LongDescription",, "T") -> E-mini Dow ($5), Jun 15 | Y11: =RTD("cqg.rtd", ,"ContractData",Data!G2, "LongDescription",, "T") -> Crude Light (Globex), Jun 15 | AB11: =RTD("cqg.rtd", ,"ContractData",Data!I2, "LongDescription",, "T") -> RBOB Gasoline (Globex), Jun 15 | AE11: =RTD("cqg.rtd", ,"ContractData",Data!K2, "LongDescription",, "T") -> Russell 2000 Index Mini, Jun 15
A12: =INDIRECT("Data!H"&$B$2+8) -> DXE vs PIL | B12: =INDIRECT("Data!J"&$B$2+8) -> 0.8230206714 | C12: =INDIRECT("Data!K"&$B$2+8) ->  | D12: =INDIRECT("Data!L"&$B$2+8) -> 0.8230206714 | N12: =RTD("cqg.rtd", ,"ContractData",Symbols!B5, "LongDescription",, "T") -> E-Mini S&P 500, Jun 15 | R12: =Symbols!B5 -> EP | S12: =Data!C3 -> 0.1361500787 | U12: =Data!D3 -> 0.2229961927 | V12: =Data!E3 -> 0.9565935308 | X12: =Data!F3 -> 0.3882386228 | Y12: =Data!G3 -> -0.2403307442 | AA12: =Data!H3 -> -0.0958997522 | AB12: =Data!I3 -> 0.1752690711 | AD12: =Data!J3 -> -0.2532428907 | AE12: =Data!K3 -> 0.437226619 | AG12: =Data!L3 -> 0.483871432
A13: =INDIRECT("Data!H"&$B$2+9) -> DXE vs DD | B13: =INDIRECT("Data!J"&$B$2+9) -> 0.8196848506 | C13: =INDIRECT("Data!K"&$B$2+9) ->  | D13: =INDIRECT("Data!L"&$B$2+9) -> 0.8196848506 | N13: =$N$12 -> E-Mini S&P 500, Jun 15 | S13: =$S$12 -> 0.1361500787 | U13: =$U$12 -> 0.2229961927 | V13: =$V$12 -> 0.9565935308 | X13: =$X$12 -> 0.3882386228 | Y13: =$Y$12 -> -0.2403307442 | AA13: =$AA$12 -> -0.0958997522 | AB13: =$AB$12 -> 0.1752690711 | AD13: =$AD$12 -> -0.2532428907 | AE13: =$AE$12 -> 0.437226619 | AG13: =$AG$12 -> 0.483871432
A14: =INDIRECT("Data!H"&$B$2+10) -> EMD vs PIL | B14: =INDIRECT("Data!J"&$B$2+10) -> 0.8008226982 | C14: =INDIRECT("Data!K"&$B$2+10) ->  | D14: =INDIRECT("Data!L"&$B$2+10) -> 0.8008226982 | N14: =RTD("cqg.rtd", ,"ContractData",Symbols!B6, "LongDescription",, "T") -> E-mini NASDAQ-100, Jun 15 | R14: =Symbols!B6 -> ENQ | S14: =Data!C4 -> 0.1485265797 | U14: =Data!D4 -> 0.300087799 | V14: =Data!E4 -> 0.8739087776 | X14: =Data!F4 -> 0.350443191 | Y14: =Data!G4 -> -0.2658685726 | AA14: =Data!H4 -> 0.0660410024 | AB14: =Data!I4 -> 0.2655247191 | AD14: =Data!J4 -> -0.5273955259 | AE14: =Data!K4 -> 0.3971187471 | AG14: =Data!L4 -> 0.4723335978
A15: =INDIRECT("Data!H"&$B$2+11) -> DXE vs QFA | B15: =INDIRECT("Data!J"&$B$2+11) -> 0.7528931259 | C15: =INDIRECT("Data!K"&$B$2+11) ->  | D15: =INDIRECT("Data!L"&$B$2+11) -> 0.7528931259 | N15: =$N$14 -> E-mini NASDAQ-100, Jun 15 | S15: =$S$14 -> 0.1485265797 | U15: =$U$14 -> 0.300087799 | V15: =$V$14 -> 0.8739087776 | X15: =$X$14 -> 0.350443191 | Y15: =$Y$14 -> -0.2658685726 | AA15: =$AA$14 -> 0.0660410024 | AB15: =$AB$14 -> 0.2655247191 | AD15: =$AD$14 -> -0.5273955259 | AE15: =$AE$14 -> 0.3971187471 | AG15: =$AG$14 -> 0.4723335978
A16: =INDIRECT("Data!H"&$B$2+12) -> DXE vs DSX | B16: =INDIRECT("Data!J"&$B$2+12) -> 0.7340567003 | C16: =INDIRECT("Data!K"&$B$2+12) ->  | D16: =INDIRECT("Data!L"&$B$2+12) -> 0.7340567003 | N16: =RTD("cqg.rtd", ,"ContractData",Symbols!B7, "LongDescription",, "T") -> E-mini MidCap 400, Jun 15 | R16: =Symbols!B7 -> EMD | S16: =Data!C5 -> 0.5887003483 | U16: =Data!D5 -> 0.5834556294 | V16: =Data!E5 -> 0.6584299342 | X16: =Data!F5 -> 0.8008226982 | Y16: =Data!G5 -> -0.7766845611 | AA16: =Data!H5 -> -0.1520607217 | AB16: =Data!I5 -> -0.564511093 | AD16: =Data!J5 -> -0.5771775377 | AE16: =Data!K5 -> 0.9414160162 | AG16: =Data!L5 -> 0.8488217981
A17: =INDIRECT("Data!H"&$B$2+13) -> EMD vs YM | B17: =INDIRECT("Data!J"&$B$2+13) -> 0.6584299342 | C17: =INDIRECT("Data!K"&$B$2+13) ->  | D17: =INDIRECT("Data!L"&$B$2+13) -> 0.6584299342 | N17: =$N$16 -> E-mini MidCap 400, Jun 15 | S17: =$S$16 -> 0.5887003483 | U17: =$U$16 -> 0.5834556294 | V17: =$V$16 -> 0.6584299342 | X17: =$X$16 -> 0.8008226982 | Y17: =$Y$16 -> -0.7766845611 | AA17: =$AA$16 -> -0.1520607217 | AB17: =$AB$16 -> -0.564511093 | AD17: =$AD$16 -> -0.5771775377 | AE17: =$AE$16 -> 0.9414160162 | AG17: =$AG$16 -> 0.8488217981
A18: =INDIRECT("Data!H"&$B$2+14) -> EU6 vs NGE | B18: =INDIRECT("Data!J"&$B$2+14) -> 0.6411644428 | C18: =INDIRECT("Data!K"&$B$2+14) ->  | D18: =INDIRECT("Data!L"&$B$2+14) -> 0.6411644428 | N18: =RTD("cqg.rtd", ,"ContractData",Symbols!B8, "LongDescription",, "T") -> Gold (Globex), Jun 15 | R18: =Symbols!B8 -> GCE | S18: =Data!C6 -> 0.1221561015 | U18: =Data!D6 -> 0.1388292136 | V18: =Data!E6 -> 0.2663595848 | X18: =Data!F6 -> 0.0976633377 | Y18: =Data!G6 -> -0.3337297588 | AA18: =Data!H6 -> 0.8993703882 | AB18: =Data!I6 -> -0.3196338358 | AD18: =Data!J6 -> -0.566523724 | AE18: =Data!K6 -> 0.328701677 | AG18: =Data!L6 -> 0.2051516231
A19: =INDIRECT("Data!H"&$B$2+15) -> BP6 vs RBE | B19: =INDIRECT("Data!J"&$B$2+15) -> 0.6343058211 | C19: =INDIRECT("Data!K"&$B$2+15) ->  | D19: =INDIRECT("Data!L"&$B$2+15) -> 0.6343058211 | N19: =$N$18 -> Gold (Globex), Jun 15 | S19: =$S$18 -> 0.1221561015 | U19: =$U$18 -> 0.1388292136 | V19: =$V$18 -> 0.2663595848 | X19: =$X$18 -> 0.0976633377 | Y19: =$Y$18 -> -0.3337297588 | AA19: =$AA$18 -> 0.8993703882 | AB19: =$AB$18 -> -0.3196338358 | AD19: =$AD$18 -> -0.566523724 | AE19: =$AE$18 -> 0.328701677 | AG19: =$AG$18 -> 0.2051516231
A20: =INDIRECT("Data!H"&$B$2+16) -> EMD vs DD | B20: =INDIRECT("Data!J"&$B$2+16) -> 0.5887003483 | C20: =INDIRECT("Data!K"&$B$2+16) ->  | D20: =INDIRECT("Data!L"&$B$2+16) -> 0.5887003483 | N20: =RTD("cqg.rtd", ,"ContractData",Symbols!B9, "LongDescription",, "T") -> Dollar Index (ICE), Jun 15 | R20: =Symbols!B9 -> DXE | S20: =Data!C7 -> 0.8196848506 | U20: =Data!D7 -> 0.7340567003 | V20: =Data!E7 -> 0.2284975337 | X20: =Data!F7 -> 0.8230206714 | Y20: =Data!G7 -> -0.9015521862 | AA20: =Data!H7 -> -0.2171962387 | AB20: =Data!I7 -> -0.8632805696 | AD20: =Data!J7 -> -0.5120935962 | AE20: =Data!K7 -> 0.8661741982 | AG20: =Data!L7 -> 0.7528931259
A21: =INDIRECT("Data!H"&$B$2+17) -> MX6 vs PLE | B21: =INDIRECT("Data!J"&$B$2+17) -> 0.5870908319 | C21: =INDIRECT("Data!K"&$B$2+17) ->  | D21: =INDIRECT("Data!L"&$B$2+17) -> 0.5870908319 | N21: =$N$20 -> Dollar Index (ICE), Jun 15 | S21: =$S$20 -> 0.8196848506 | U21: =$U$20 -> 0.7340567003 | V21: =$V$20 -> 0.2284975337 | X21: =$X$20 -> 0.8230206714 | Y21: =$Y$20 -> -0.9015521862 | AA21: =$AA$20 -> -0.2171962387 | AB21: =$AB$20 -> -0.8632805696 | AD21: =$AD$20 -> -0.5120935962 | AE21: =$AE$20 -> 0.8661741982 | AG21: =$AG$20 -> 0.7528931259
A22: =INDIRECT("Data!H"&$B$2+18) -> EMD vs DSX | B22: =INDIRECT("Data!J"&$B$2+18) -> 0.5834556294 | C22: =INDIRECT("Data!K"&$B$2+18) ->  | D22: =INDIRECT("Data!L"&$B$2+18) -> 0.5834556294 | N22: =RTD("cqg.rtd", ,"ContractData",Symbols!B10, "LongDescription",, "T") -> Euro FX (Globex), Jun 15 | R22: =Symbols!B10 -> EU6 | S22: =Data!C8 -> -0.8346359604 | U22: =Data!D8 -> -0.7738761912 | V22: =Data!E8 -> -0.2859883551 | X22: =Data!F8 -> -0.8582954311 | Y22: =Data!G8 -> 0.9399985697 | AA22: =Data!H8 -> 0.1282061705 | AB22: =Data!I8 -> 0.8487254294 | AD22: =Data!J8 -> 0.6411644428 | AE22: =Data!K8 -> -0.9236491644 | AG22: =Data!L8 -> -0.8125673723
A23: =INDIRECT("Data!H"&$B$2+19) -> DA6 vs RBE | B23: =INDIRECT("Data!J"&$B$2+19) -> 0.5525345005 | C23: =INDIRECT("Data!K"&$B$2+19) ->  | D23: =INDIRECT("Data!L"&$B$2+19) -> 0.5525345005 | N23: =$N$22 -> Euro FX (Globex), Jun 15 | S23: =$S$22 -> -0.8346359604 | U23: =$U$22 -> -0.7738761912 | V23: =$V$22 -> -0.2859883551 | X23: =$X$22 -> -0.8582954311 | Y23: =$Y$22 -> 0.9399985697 | AA23: =$AA$22 -> 0.1282061705 | AB23: =$AB$22 -> 0.8487254294 | AD23: =$AD$22 -> 0.6411644428 | AE23: =$AE$22 -> -0.9236491644 | AG23: =$AG$22 -> -0.8125673723
A24: =INDIRECT("Data!H"&$B$2+20) -> DA6 vs PLE | B24: =INDIRECT("Data!J"&$B$2+20) -> 0.5234829112 | C24: =INDIRECT("Data!K"&$B$2+20) ->  | D24: =INDIRECT("Data!L"&$B$2+20) -> 0.5234829112 | N24: =RTD("cqg.rtd", ,"ContractData",Symbols!B11, "LongDescription",, "T") -> Japanese Yen (Globex), Jun 15 | R24: =Symbols!B11 -> JY6 | S24: =Data!C9 -> 0.0140909001 | U24: =Data!D9 -> 0.1737933167 | V24: =Data!E9 -> 0.2356219612 | X24: =Data!F9 -> 0.0590846122 | Y24: =Data!G9 -> -0.2834675667 | AA24: =Data!H9 -> 0.3089766489 | AB24: =Data!I9 -> 0.0412950262 | AD24: =Data!J9 -> -0.789524587 | AE24: =Data!K9 -> 0.3897790886 | AG24: =Data!L9 -> 0.2378129253
A25: =INDIRECT("Data!H"&$B$2+21) -> EP vs QFA | B25: =INDIRECT("Data!J"&$B$2+21) -> 0.483871432 | C25: =INDIRECT("Data!K"&$B$2+21) ->  | D25: =INDIRECT("Data!L"&$B$2+21) -> 0.483871432 | N25: =$N$24 -> Japanese Yen (Globex), Jun 15 | S25: =$S$24 -> 0.0140909001 | U25: =$U$24 -> 0.1737933167 | V25: =$V$24 -> 0.2356219612 | X25: =$X$24 -> 0.0590846122 | Y25: =$Y$24 -> -0.2834675667 | AA25: =$AA$24 -> 0.3089766489 | AB25: =$AB$24 -> 0.0412950262 | AD25: =$AD$24 -> -0.789524587 | AE25: =$AE$24 -> 0.3897790886 | AG25: =$AG$24 -> 0.2378129253
A26: =INDIRECT("Data!H"&$B$2+22) -> ENQ vs QFA | B26: =INDIRECT("Data!J"&$B$2+22) -> 0.4723335978 | C26: =INDIRECT("Data!K"&$B$2+22) ->  | D26: =INDIRECT("Data!L"&$B$2+22) -> 0.4723335978 | N26: =RTD("cqg.rtd", ,"ContractData",Symbols!B12, "LongDescription",, "T") -> Australian Dollar (Globex), Jun 15 | R26: =Symbols!B12 -> DA6 | S26: =Data!C10 -> -0.6048081676 | U26: =Data!D10 -> -0.4602335534 | V26: =Data!E10 -> 0.142852722 | X26: =Data!F10 -> -0.5221539068 | Y26: =Data!G10 -> 0.3874033988 | AA26: =Data!H10 -> 0.5234829112 | AB26: =Data!I10 -> 0.5525345005 | AD26: =Data!J10 -> -0.1118109697 | AE26: =Data!K10 -> -0.3348921954 | AG26: =Data!L10 -> -0.4112950053
A27: =INDIRECT("Data!H"&$B$2+23) -> BP6 vs CLE | B27: =INDIRECT("Data!J"&$B$2+23) -> 0.4545778784 | C27: =INDIRECT("Data!K"&$B$2+23) ->  | D27: =INDIRECT("Data!L"&$B$2+23) -> 0.4545778784 | N27: =$N$26 -> Australian Dollar (Globex), Jun 15 | S27: =$S$26 -> -0.6048081676 | U27: =$U$26 -> -0.4602335534 | V27: =$V$26 -> 0.142852722 | X27: =$X$26 -> -0.5221539068 | Y27: =$Y$26 -> 0.3874033988 | AA27: =$AA$26 -> 0.5234829112 | AB27: =$AB$26 -> 0.5525345005 | AD27: =$AD$26 -> -0.1118109697 | AE27: =$AE$26 -> -0.3348921954 | AG27: =$AG$26 -> -0.4112950053
A28: =INDIRECT("Data!H"&$B$2+24) -> EP vs TFE | B28: =INDIRECT("Data!J"&$B$2+24) -> 0.437226619 | C28: =INDIRECT("Data!K"&$B$2+24) ->  | D28: =INDIRECT("Data!L"&$B$2+24) -> 0.437226619 | N28: =RTD("cqg.rtd", ,"ContractData",Symbols!B13, "LongDescription",, "T") -> British Pound (Globex), Jun 15 | R28: =Symbols!B13 -> BP6 | S28: =Data!C11 -> -0.6175438615 | U28: =Data!D11 -> -0.4454521933 | V28: =Data!E11 -> -0.044355273 | X28: =Data!F11 -> -0.5414582035 | Y28: =Data!G11 -> 0.4545778784 | AA28: =Data!H11 -> 0.3849366179 | AB28: =Data!I11 -> 0.6343058211 | AD28: =Data!J11 -> -0.1064017152 | AE28: =Data!K11 -> -0.4220065309 | AG28: =Data!L11 -> -0.4469827138
A29: =INDIRECT("Data!H"&$B$2+25) -> ENQ vs TFE | B29: =INDIRECT("Data!J"&$B$2+25) -> 0.3971187471 | C29: =INDIRECT("Data!K"&$B$2+25) ->  | D29: =INDIRECT("Data!L"&$B$2+25) -> 0.3971187471 | N29: =$N$28 -> British Pound (Globex), Jun 15 | S29: =$S$28 -> -0.6175438615 | U29: =$U$28 -> -0.4454521933 | V29: =$V$28 -> -0.044355273 | X29: =$X$28 -> -0.5414582035 | Y29: =$Y$28 -> 0.4545778784 | AA29: =$AA$28 -> 0.3849366179 | AB29: =$AB$28 -> 0.6343058211 | AD29: =$AD$28 -> -0.1064017152 | AE29: =$AE$28 -> -0.4220065309 | AG29: =$AG$28 -> -0.4469827138
A30: =INDIRECT("Data!H"&$B$2+26) -> JY6 vs TFE | B30: =INDIRECT("Data!J"&$B$2+26) -> 0.3897790886 | C30: =INDIRECT("Data!K"&$B$2+26) ->  | D30: =INDIRECT("Data!L"&$B$2+26) -> 0.3897790886 | N30: =RTD("cqg.rtd", ,"ContractData",Symbols!B14, "LongDescription",, "T") -> Mexican Peso (Globex), Jun 15 | R30: =Symbols!B14 -> MX6 | S30: =Data!C12 -> -0.511356083 | U30: =Data!D12 -> -0.341354294 | V30: =Data!E12 -> 0.1698779146 | X30: =Data!F12 -> -0.3547582042 | Y30: =Data!G12 -> -0.0346235099 | AA30: =Data!H12 -> 0.5870908319 | AB30: =Data!I12 -> 0.1148846539 | AD30: =Data!J12 -> -0.545408717 | AE30: =Data!K12 -> 0.184834262 | AG30: =Data!L12 -> -0.1702279231
A31: =INDIRECT("Data!H"&$B$2+27) -> EP vs PIL | B31: =INDIRECT("Data!J"&$B$2+27) -> 0.3882386228 | C31: =INDIRECT("Data!K"&$B$2+27) ->  | D31: =INDIRECT("Data!L"&$B$2+27) -> 0.3882386228 | N31: =$N$30 -> Mexican Peso (Globex), Jun 15 | S31: =$S$30 -> -0.511356083 | U31: =$U$30 -> -0.341354294 | V31: =$V$30 -> 0.1698779146 | X31: =$X$30 -> -0.3547582042 | Y31: =$Y$30 -> -0.0346235099 | AA31: =$AA$30 -> 0.5870908319 | AB31: =$AB$30 -> 0.1148846539 | AD31: =$AD$30 -> -0.545408717 | AE31: =$AE$30 -> 0.184834262 | AG31: =$AG$30 -> -0.1702279231
A32: =INDIRECT("Data!H"&$B$2+28) -> DA6 vs CLE | B32: =INDIRECT("Data!J"&$B$2+28) -> 0.3874033988 | C32: =INDIRECT("Data!K"&$B$2+28) ->  | D32: =INDIRECT("Data!L"&$B$2+28) -> 0.3874033988 | N32: =$N$20 -> Dollar Index (ICE), Jun 15 | S32: =$S$20 -> 0.8196848506 | U32: =$U$20 -> 0.7340567003 | V32: =$V$20 -> 0.2284975337 | X32: =$X$20 -> 0.8230206714 | Y32: =$Y$20 -> -0.9015521862 | AA32: =$AA$20 -> -0.2171962387 | AB32: =$AB$20 -> -0.8632805696 | AD32: =$AD$20 -> -0.5120935962 | AE32: =$AE$20 -> 0.8661741982 | AG32: =$AG$20 -> 0.7528931259
A33: =INDIRECT("Data!H"&$B$2+29) -> BP6 vs PLE | B33: =INDIRECT("Data!J"&$B$2+29) -> 0.3849366179 | C33: =INDIRECT("Data!K"&$B$2+29) ->  | D33: =INDIRECT("Data!L"&$B$2+29) -> 0.3849366179 | N33: ="Correlations relative to the "&N32 -> Correlations relative to the Dollar Index (ICE), Jun 15
A34: =INDIRECT("Data!H"&$B$2+30) -> ENQ vs PIL | B34: =INDIRECT("Data!J"&$B$2+30) -> 0.350443191 | C34: =INDIRECT("Data!K"&$B$2+30) ->  | D34: =INDIRECT("Data!L"&$B$2+30) -> 0.350443191
A35: =INDIRECT("Data!H"&$B$2+31) -> GCE vs TFE | B35: =INDIRECT("Data!J"&$B$2+31) -> 0.328701677 | C35: =INDIRECT("Data!K"&$B$2+31) ->  | D35: =INDIRECT("Data!L"&$B$2+31) -> 0.328701677
A36: =INDIRECT("Data!H"&$B$2+32) -> JY6 vs PLE | B36: =INDIRECT("Data!J"&$B$2+32) -> 0.3089766489 | C36: =INDIRECT("Data!K"&$B$2+32) ->  | D36: =INDIRECT("Data!L"&$B$2+32) -> 0.3089766489
A37: =INDIRECT("Data!H"&$B$2+33) -> ENQ vs DSX | B37: =INDIRECT("Data!J"&$B$2+33) -> 0.300087799 | C37: =INDIRECT("Data!K"&$B$2+33) ->  | D37: =INDIRECT("Data!L"&$B$2+33) -> 0.300087799
A38: =INDIRECT("Data!H"&$B$2+34) -> GCE vs YM | B38: =INDIRECT("Data!J"&$B$2+34) -> 0.2663595848 | C38: =INDIRECT("Data!K"&$B$2+34) ->  | D38: =INDIRECT("Data!L"&$B$2+34) -> 0.2663595848
A39: =INDIRECT("Data!H"&$B$2+35) -> ENQ vs RBE | B39: =INDIRECT("Data!J"&$B$2+35) -> 0.2655247191 | C39: =INDIRECT("Data!K"&$B$2+35) ->  | D39: =INDIRECT("Data!L"&$B$2+35) -> 0.2655247191
A40: =INDIRECT("Data!H"&$B$2+36) -> JY6 vs QFA | B40: =INDIRECT("Data!J"&$B$2+36) -> 0.2378129253 | C40: =INDIRECT("Data!K"&$B$2+36) ->  | D40: =INDIRECT("Data!L"&$B$2+36) -> 0.2378129253
A41: =INDIRECT("Data!H"&$B$2+35) -> ENQ vs RBE | B41: =INDIRECT("Data!J"&$B$2+35) -> 0.2655247191 | C41: =INDIRECT("Data!K"&$B$2+35) ->  | D41: =INDIRECT("Data!L"&$B$2+35) -> 0.2655247191
A42: =INDIRECT("Data!H"&$B$2+38) -> DXE vs YM | B42: =INDIRECT("Data!J"&$B$2+38) -> 0.2284975337 | C42: =INDIRECT("Data!K"&$B$2+38) ->  | D42: =INDIRECT("Data!L"&$B$2+38) -> 0.2284975337
A43: =INDIRECT("Data!H"&$B$2+39) -> EP vs DSX | B43: =INDIRECT("Data!J"&$B$2+39) -> 0.2229961927 | C43: =INDIRECT("Data!K"&$B$2+39) ->  | D43: =INDIRECT("Data!L"&$B$2+39) -> 0.2229961927
A44: =INDIRECT("Data!H"&$B$2+40) -> GCE vs QFA | B44: =INDIRECT("Data!J"&$B$2+40) -> 0.2051516231 | C44: =INDIRECT("Data!K"&$B$2+40) ->  | D44: =INDIRECT("Data!L"&$B$2+40) -> 0.2051516231
A45: =INDIRECT("Data!H"&$B$2+41) -> MX6 vs TFE | B45: =INDIRECT("Data!J"&$B$2+41) -> 0.184834262 | C45: =INDIRECT("Data!K"&$B$2+41) ->  | D45: =INDIRECT("Data!L"&$B$2+41) -> 0.184834262
A46: =INDIRECT("Data!H"&$B$2+42) -> EP vs RBE | B46: =INDIRECT("Data!J"&$B$2+42) -> 0.1752690711 | C46: =INDIRECT("Data!K"&$B$2+42) ->  | D46: =INDIRECT("Data!L"&$B$2+42) -> 0.1752690711
A47: =INDIRECT("Data!H"&$B$2+43) -> JY6 vs DSX | B47: =INDIRECT("Data!J"&$B$2+43) -> 0.1737933167 | C47: =INDIRECT("Data!K"&$B$2+43) ->  | D47: =INDIRECT("Data!L"&$B$2+43) -> 0.1737933167
A48: =INDIRECT("Data!H"&$B$2+44) -> MX6 vs YM | B48: =INDIRECT("Data!J"&$B$2+44) -> 0.1698779146 | C48: =INDIRECT("Data!K"&$B$2+44) ->  | D48: =INDIRECT("Data!L"&$B$2+44) -> 0.1698779146
A49: =INDIRECT("Data!H"&$B$2+45) -> ENQ vs DD | B49: =INDIRECT("Data!J"&$B$2+45) -> 0.1485265797 | C49: =INDIRECT("Data!K"&$B$2+45) ->  | D49: =INDIRECT("Data!L"&$B$2+45) -> 0.1485265797
A50: =INDIRECT("Data!H"&$B$2+46) -> DA6 vs YM | B50: =INDIRECT("Data!J"&$B$2+46) -> 0.142852722 | C50: =INDIRECT("Data!K"&$B$2+46) ->  | D50: =INDIRECT("Data!L"&$B$2+46) -> 0.142852722
A51: =INDIRECT("Data!H"&$B$2+47) -> GCE vs DSX | B51: =INDIRECT("Data!J"&$B$2+47) -> 0.1388292136 | C51: =INDIRECT("Data!K"&$B$2+47) ->  | D51: =INDIRECT("Data!L"&$B$2+47) -> 0.1388292136 | E51: =RTD("cqg.rtd", ,"ContractData",Symbols!D3, "LongDescription",, "T") -> DAX Index, Jun 15 | H51: =RTD("cqg.rtd", ,"ContractData",Symbols!E3, "LongDescription",, "T") -> Euro STOXX 50, Jun 15 | K51: =RTD("cqg.rtd", ,"ContractData",Symbols!F3, "LongDescription",, "T") -> E-mini Dow ($5), Jun 15 | N51: =RTD("cqg.rtd", ,"ContractData",Symbols!G3, "LongDescription",, "T") -> CAC40, May 15 | Q51: =RTD("cqg.rtd", ,"ContractData",Symbols!H3, "LongDescription",, "T") -> Crude Light (Globex), Jun 15 | T51: =RTD("cqg.rtd", ,"ContractData",Symbols!I3, "LongDescription",, "T") -> Platinum (Globex), Jul 15 | W51: =RTD("cqg.rtd", ,"ContractData",Symbols!J3, "LongDescription",, "T") -> RBOB Gasoline (Globex), Jun 15 | Z51: =RTD("cqg.rtd", ,"ContractData",Symbols!K3, "LongDescription",, "T") -> Natural Gas (Globex), Jun 15 | AC51: =RTD("cqg.rtd", ,"ContractData",Symbols!L3, "LongDescription",, "T") -> Russell 2000 Index Mini, Jun 15 | AF51: =RTD("cqg.rtd", ,"ContractData",Symbols!M3, "LongDescription",, "T") -> FTSE 100 - Stnd Index, Jun 15
A52: =INDIRECT("Data!H"&$B$2+48) -> EP vs DD | B52: =INDIRECT("Data!J"&$B$2+48) -> 0.1361500787 | C52: =INDIRECT("Data!K"&$B$2+48) ->  | D52: =INDIRECT("Data!L"&$B$2+48) -> 0.1361500787 | E52: =IF(Symbols!D4="B",RTD("cqg.rtd",,"ContractData",Symbols!D3,"LastTrade",,"B"),TEXT(RTD("cqg.rtd",,"ContractData",Symbols!D3,"LastTrade",,"T"),Symbols!D2)) -> 11644.50 | H52: =IF(Symbols!E4="B",RTD("cqg.rtd",,"ContractData",Symbols!E3,"LastTrade",,"B"),TEXT(RTD("cqg.rtd",,"ContractData",Symbols!E3,"LastTrade",,"T"),Symbols!E2)) -> 3586 | K52: =IF(Symbols!F4="B",RTD("cqg.rtd",,"ContractData",Symbols!F3,"LastTrade",,"B"),TEXT(RTD("cqg.rtd",,"ContractData",Symbols!F3,"LastTrade",,"T"),Symbols!F2)) -> 18030 | N52: =IF(Symbols!G4="B",RTD("cqg.rtd",,"ContractData",Symbols!G3,"LastTrade",,"B"),TEXT(RTD("cqg.rtd",,"ContractData",Symbols!G3,"LastTrade",,"T"),Symbols!G2)) -> 5052.00 | Q52: =IF(Symbols!H4="B",RTD("cqg.rtd",,"ContractData",Symbols!H3,"LastTrade",,"B"),TEXT(RTD("cqg.rtd",,"ContractData",Symbols!H3,"LastTrade",,"T"),Symbols!H2)) -> 58.88 | T52: =IF(Symbols!I4="B",RTD("cqg.rtd",,"ContractData",Symbols!I3,"LastTrade",,"B"),TEXT(RTD("cqg.rtd",,"ContractData",Symbols!I3,"LastTrade",,"T"),Symbols!I2)) -> 1148.80 | W52: =IF(Symbols!J4="B",RTD("cqg.rtd",,"ContractData",Symbols!J3,"LastTrade",,"B"),TEXT(RTD("cqg.rtd",,"ContractData",Symbols!J3,"LastTrade",,"T"),Symbols!J2)) -> 2.031 | Z52: =IF(Symbols!K4="B",RTD("cqg.rtd",,"ContractData",Symbols!K3,"LastTrade",,"B"),TEXT(RTD("cqg.rtd",,"ContractData",Symbols!K3,"LastTrade",,"T"),Symbols!K2)) -> 2.819 | AC52: =IF(Symbols!L4="B",RTD("cqg.rtd",,"ContractData",Symbols!L3,"LastTrade",,"B"),TEXT(RTD("cqg.rtd",,"ContractData",Symbols!L3,"LastTrade",,"T"),Symbols!L2)) -> 1232.30 | AF52: =IF(Symbols!M4="B",RTD("cqg.rtd",,"ContractData",Symbols!M3,"LastTrade",,"B"),TEXT(RTD("cqg.rtd",,"ContractData",Symbols!M3,"LastTrade",,"T"),Symbols!M2)) -> 7000.00
A53: =INDIRECT("Data!H"&$B$2+49) -> EU6 vs PLE | B53: =INDIRECT("Data!J"&$B$2+49) -> 0.1282061705 | C53: =INDIRECT("Data!K"&$B$2+49) ->  | D53: =INDIRECT("Data!L"&$B$2+49) -> 0.1282061705
E54: H: | F54: =IF(Symbols!D4="B",RTD("cqg.rtd",,"ContractData",Symbols!D3,"High",,"B"),TEXT(RTD("cqg.rtd",,"ContractData",Symbols!D3,"High",,"T"),Symbols!D2)) ->  | G54: =IF(Symbols!D4="B",RTD("cqg.rtd",,"ContractData",Symbols!D3,"NetLastQuoteToday",,"B"),IF(RTD("cqg.rtd",,"ContractData",Symbols!D3,"NetLastQuoteToday",,"T")>0,"+"&TEXT(RTD("cqg.rtd",,"ContractData",Symbols!D3,"NetLastQuoteToday",,"T"),Symbols!D2),TEXT(RTD("cqg.rtd",,"ContractData",Symbols!D3,"NetLastQuoteToday",,"T"),Symbols!D2))) -> + | H54: H: | I54: =IF(Symbols!E4="B",RTD("cqg.rtd",,"ContractData",Symbols!E3,"High",,"B"),TEXT(RTD("cqg.rtd",,"ContractData",Symbols!E3,"High",,"T"),Symbols!E2)) ->  | J54: =IF(Symbols!E4="B",RTD("cqg.rtd",,"ContractData",Symbols!E3,"NetLastQuoteToday",,"B"),IF(RTD("cqg.rtd",,"ContractData",Symbols!E3,"NetLastQuoteToday",,"T")>0,"+"&TEXT(RTD("cqg.rtd",,"ContractData",Symbols!E3,"NetLastQuoteToday",,"T"),Symbols!E2),TEXT(RTD("cqg.rtd",,"ContractData",Symbols!E3,"NetLastQuoteToday",,"T"),Symbols!E2))) -> + | K54: H: | L54: =IF(Symbols!F4="B",RTD("cqg.rtd",,"ContractData",Symbols!F3,"High",,"B"),TEXT(RTD("cqg.rtd",,"ContractData",Symbols!F3,"High",,"T"),Symbols!F2)) ->  | M54: =IF(Symbols!F4="B",RTD("cqg.rtd",,"ContractData",Symbols!F3,"NetLastQuoteToday",,"B"),IF(RTD("cqg.rtd",,"ContractData",Symbols!F3,"NetLastQuoteToday",,"T")>0,"+"&TEXT(RTD("cqg.rtd",,"ContractData",Symbols!F3,"NetLastQuoteToday",,"T"),Symbols!F2),TEXT(RTD("cqg.rtd",,"ContractData",Symbols!F3,"NetLastQuoteToday",,"T"),Symbols!F2))) -> + | N54: H: | O54: =IF(Symbols!M4="B",RTD("cqg.rtd",,"ContractData",Symbols!M3,"High",,"B"),TEXT(RTD("cqg.rtd",,"ContractData",Symbols!M3,"High",,"T"),Symbols!M2)) ->  | P54: =IF(Symbols!G4="B",RTD("cqg.rtd",,"ContractData",Symbols!G3,"NetLastQuoteToday",,"B"),IF(RTD("cqg.rtd",,"ContractData",Symbols!G3,"NetLastQuoteToday",,"T")>0,"+"&TEXT(RTD("cqg.rtd",,"ContractData",Symbols!G3,"NetLastQuoteToday",,"T"),Symbols!G2),TEXT(RTD("cqg.rtd",,"ContractData",Symbols!G3,"NetLastQuoteToday",,"T"),Symbols!G2))) -> + | Q54: H: | R54: =IF(Symbols!H4="B",RTD("cqg.rtd",,"ContractData",Symbols!H3,"High",,"B"),TEXT(RTD("cqg.rtd",,"ContractData",Symbols!H3,"High",,"T"),Symbols!H2)) -> 59.73 | S54: =IF(Symbols!H4="B",RTD("cqg.rtd",,"ContractData",Symbols!H3,"NetLastQuoteToday",,"B"),IF(RTD("cqg.rtd",,"ContractData",Symbols!H3,"NetLastQuoteToday",,"T")>0,"+"&TEXT(RTD("cqg.rtd",,"ContractData",Symbols!H3,"NetLastQuoteToday",,"T"),Symbols!H2),TEXT(RTD("cqg.rtd",,"ContractData",Symbols!H3,"NetLastQuoteToday",,"T"),Symbols!H2))) -> -.27 | T54: H: | U54: =IF(Symbols!I4="B",RTD("cqg.rtd",,"ContractData",Symbols!I3,"High",,"B"),TEXT(RTD("cqg.rtd",,"ContractData",Symbols!I3,"High",,"T"),Symbols!I2)) ->  | V54: =IF(Symbols!I4="B",RTD("cqg.rtd",,"ContractData",Symbols!I3,"NetLastQuoteToday",,"B"),IF(RTD("cqg.rtd",,"ContractData",Symbols!I3,"NetLastQuoteToday",,"T")>0,"+"&TEXT(RTD("cqg.rtd",,"ContractData",Symbols!I3,"NetLastQuoteToday",,"T"),Symbols!I2),TEXT(RTD("cqg.rtd",,"ContractData",Symbols!I3,"NetLastQuoteToday",,"T"),Symbols!I2))) -> + | W54: H: | X54: =IF(Symbols!J4="B",RTD("cqg.rtd",,"ContractData",Symbols!J3,"High",,"B"),TEXT(RTD("cqg.rtd",,"ContractData",Symbols!J3,"High",,"T"),Symbols!J2)) ->  | Y54: =IF(Symbols!J4="B",RTD("cqg.rtd",,"ContractData",Symbols!J3,"NetLastQuoteToday",,"B"),IF(RTD("cqg.rtd",,"ContractData",Symbols!J3,"NetLastQuoteToday",,"T")>0,"+"&TEXT(RTD("cqg.rtd",,"ContractData",Symbols!J3,"NetLastQuoteToday",,"T"),Symbols!J2),TEXT(RTD("cqg.rtd",,"ContractData",Symbols!J3,"NetLastQuoteToday",,"T"),Symbols!J2))) -> + | Z54: H: | AA54: =IF(Symbols!K4="B",RTD("cqg.rtd",,"ContractData",Symbols!K3,"High",,"B"),TEXT(RTD("cqg.rtd",,"ContractData",Symbols!K3,"High",,"T"),Symbols!K2)) ->  | AB54: =IF(Symbols!K4="B",RTD("cqg.rtd",,"ContractData",Symbols!K3,"NetLastQuoteToday",,"B"),IF(RTD("cqg.rtd",,"ContractData",Symbols!K3,"NetLastQuoteToday",,"T")>0,"+"&TEXT(RTD("cqg.rtd",,"ContractData",Symbols!K3,"NetLastQuoteToday",,"T"),Symbols!K2),TEXT(RTD("cqg.rtd",,"ContractData",Symbols!K3,"NetLastQuoteToday",,"T"),Symbols!K2))) -> + | AC54: H: | AD54: =IF(Symbols!L4="B",RTD("cqg.rtd",,"ContractData",Symbols!L3,"High",,"B"),TEXT(RTD("cqg.rtd",,"ContractData",Symbols!L3,"High",,"T"),Symbols!L2)) ->  | AE54: =IF(Symbols!L4="B",RTD("cqg.rtd",,"ContractData",Symbols!L3,"NetLastQuoteToday",,"B"),IF(RTD("cqg.rtd",,"ContractData",Symbols!L3,"NetLastQuoteToday",,"T")>0,"+"&TEXT(RTD("cqg.rtd",,"ContractData",Symbols!L3,"NetLastQuoteToday",,"T"),Symbols!L2),TEXT(RTD("cqg.rtd",,"ContractData",Symbols!L3,"NetLastQuoteToday",,"T"),Symbols!L2))) -> + | AF54: H: | AG54: =IF(Symbols!M4="B",RTD("cqg.rtd",,"ContractData",Symbols!M3,"High",,"B"),TEXT(RTD("cqg.rtd",,"ContractData",Symbols!M3,"High",,"T"),Symbols!M2)) ->  | AH54: =IF(Symbols!M4="B",RTD("cqg.rtd",,"ContractData",Symbols!M3,"NetLastQuoteToday",,"B"),IF(RTD("cqg.rtd",,"ContractData",Symbols!M3,"NetLastQuoteToday",,"T")>0,"+"&TEXT(RTD("cqg.rtd",,"ContractData",Symbols!M3,"NetLastQuoteToday",,"T"),Symbols!M2),TEXT(RTD("cqg.rtd",,"ContractData",Symbols!M3,"NetLastQuoteToday",,"T"),Symbols!M2))) -> +
E55: L: | F55: =IF(Symbols!D4="B",RTD("cqg.rtd",,"ContractData",Symbols!D3,"Low",,"B"),TEXT(RTD("cqg.rtd",,"ContractData",Symbols!D3,"Low",,"T"),Symbols!D2)) ->  | G55: =IFERROR(RTD("cqg.rtd", ,"ContractData",Symbols!D3, "PerCentNetLastQuote",, "T")/100,"") ->  | H55: L: | I55: =IF(Symbols!E4="B",RTD("cqg.rtd",,"ContractData",Symbols!E3,"Low",,"B"),TEXT(RTD("cqg.rtd",,"ContractData",Symbols!E3,"Low",,"T"),Symbols!E2)) ->  | J55: =IFERROR(RTD("cqg.rtd", ,"ContractData",Symbols!E3, "PerCentNetLastQuote",, "T")/100,"") ->  | K55: L: | L55: =IF(Symbols!F4="B",RTD("cqg.rtd",,"ContractData",Symbols!F3,"Low",,"B"),TEXT(RTD("cqg.rtd",,"ContractData",Symbols!F3,"Low",,"T"),Symbols!F2)) ->  | M55: =IFERROR(RTD("cqg.rtd", ,"ContractData",Symbols!F3, "PerCentNetLastQuote",, "T")/100,"") ->  | N55: L: | O55: =IF(Symbols!M4="B",RTD("cqg.rtd",,"ContractData",Symbols!M3,"Low",,"B"),TEXT(RTD("cqg.rtd",,"ContractData",Symbols!M3,"Low",,"T"),Symbols!M2)) ->  | P55: =IFERROR(RTD("cqg.rtd", ,"ContractData",Symbols!M3, "PerCentNetLastQuote",, "T")/100,"") ->  | Q55: L: | R55: =IF(Symbols!H4="B",RTD("cqg.rtd",,"ContractData",Symbols!H3,"Low",,"B"),TEXT(RTD("cqg.rtd",,"ContractData",Symbols!H3,"Low",,"T"),Symbols!H2)) -> 58.45 | S55: =IFERROR(RTD("cqg.rtd", ,"ContractData",Symbols!H3, "PerCentNetLastQuote",, "T")/100,"") -> -0.004564666103 | T55: L: | U55: =IF(Symbols!I4="B",RTD("cqg.rtd",,"ContractData",Symbols!I3,"Low",,"B"),TEXT(RTD("cqg.rtd",,"ContractData",Symbols!I3,"Low",,"T"),Symbols!I2)) ->  | V55: =IFERROR(RTD("cqg.rtd", ,"ContractData",Symbols!I3, "PerCentNetLastQuote",, "T")/100,"") ->  | W55: L: | X55: =IF(Symbols!J4="B",RTD("cqg.rtd",,"ContractData",Symbols!J3,"Low",,"B"),TEXT(RTD("cqg.rtd",,"ContractData",Symbols!J3,"Low",,"T"),Symbols!J2)) ->  | Y55: =IFERROR(RTD("cqg.rtd", ,"ContractData",Symbols!J3, "PerCentNetLastQuote",, "T")/100,"") ->  | Z55: L: | AA55: =IF(Symbols!K4="B",RTD("cqg.rtd",,"ContractData",Symbols!K3,"Low",,"B"),TEXT(RTD("cqg.rtd",,"ContractData",Symbols!K3,"Low",,"T"),Symbols!K2)) ->  | AB55: =IFERROR(RTD("cqg.rtd", ,"ContractData",Symbols!K3, "PerCentNetLastQuote",, "T")/100,"") ->  | AC55: L: | AD55: =IF(Symbols!L4="B",RTD("cqg.rtd",,"ContractData",Symbols!L3,"Low",,"B"),TEXT(RTD("cqg.rtd",,"ContractData",Symbols!L3,"Low",,"T"),Symbols!L2)) ->  | AE55: =IFERROR(RTD("cqg.rtd", ,"ContractData",Symbols!L3, "PerCentNetLastQuote",, "T")/100,"") ->  | AF55: L: | AG55: =IF(Symbols!M4="B",RTD("cqg.rtd",,"ContractData",Symbols!M3,"Low",,"B"),TEXT(RTD("cqg.rtd",,"ContractData",Symbols!M3,"Low",,"T"),Symbols!M2)) ->  | AH55: =IFERROR(RTD("cqg.rtd", ,"ContractData",Symbols!M3, "PerCentNetLastQuote",, "T")/100,"") -> 
F56: Copyright © 2015 | J56: Chicago: | L56: =RTD("cqg.rtd", ,"SystemInfo", "Linetime") -> 42128.5705 | O56: Designed by Thom Hartle

Sheet Data (hidden)
A1: Lookback: | B1: =MainDisplay!P11 -> 10
A2: Time Frame: | B2: =MainDisplay!N11 -> D | C2: =Symbols!D3 -> DD | D2: =Symbols!E3 -> DSX | E2: =Symbols!F3 -> YM | F2: =Symbols!G3 -> PIL | G2: =Symbols!H3 -> CLE | H2: =Symbols!I3 -> PLE | I2: =Symbols!J3 -> RBE | J2: =Symbols!K3 -> NGE | K2: =Symbols!L3 -> TFE | L2: =Symbols!M3 -> QFA
A3: =Symbols!B5 -> EP | C3: =RTD("cqg.rtd",,"StudyData", "Correlation("&$A$3&","&C$2&",Period:="&$B$1&",InputChoice1::=Close,InputChoice2::=Close)", "FG", "", "Close",$B$2, "0", "all","", "","True","T")/100 -> 0.1361500787 | D3: =RTD("cqg.rtd",,"StudyData", "Correlation("&$A$3&","&D$2&",Period:="&$B$1&",InputChoice1:=Close,InputChoice2:=Close)", "FG", "", "Close",$B$2, "0", "all","", "","True","T")/100 -> 0.2229961927 | E3: =RTD("cqg.rtd",,"StudyData", "Correlation("&$A$3&","&E$2&",Period:="&$B$1&",InputChoice1:=Close,InputChoice2:=Close)", "FG", "", "Close",$B$2, "0", "all","", "","True","T")/100 -> 0.9565935308 | F3: =RTD("cqg.rtd",,"StudyData", "Correlation("&$A$3&","&F$2&",Period:="&$B$1&",InputChoice1:=Close,InputChoice2:=Close)", "FG", "", "Close",$B$2, "0", "all","", "","True","T")/100 -> 0.3882386228 | G3: =RTD("cqg.rtd",,"StudyData", "Correlation("&$A$3&","&G$2&",Period:="&$B$1&",InputChoice1:=Close,InputChoice2:=Close)", "FG", "", "Close",$B$2, "0", "all","", "","True","T")/100 -> -0.2403307442 | H3: =RTD("cqg.rtd",,"StudyData", "Correlation("&$A$3&","&H$2&",Period:="&$B$1&",InputChoice1:=Close,InputChoice2:=Close)", "FG", "", "Close",$B$2, "0", "all","", "","True","T")/100 -> -0.0958997522 | I3: =RTD("cqg.rtd",,"StudyData", "Correlation("&$A$3&","&I$2&",Period:="&$B$1&",InputChoice1:=Close,InputChoice2:=Close)", "FG", "", "Close",$B$2, "0", "all","", "","True","T")/100 -> 0.1752690711 | J3: =RTD("cqg.rtd",,"StudyData", "Correlation("&$A$3&","&J$2&",Period:="&$B$1&",InputChoice1:=Close,InputChoice2:=Close)", "FG", "", "Close",$B$2, "0", "all","", "","True","T")/100 -> -0.2532428907 | K3: =RTD("cqg.rtd",,"StudyData", "Correlation("&$A$3&","&K$2&",Period:="&$B$1&",InputChoice1:=Close,InputChoice2:=Close)", "FG", "", "Close",$B$2, "0", "all","", "","True","T")/100 -> 0.437226619 | L3: =RTD("cqg.rtd",,"StudyData", "Correlation("&$A$3&","&L$2&",Period:="&$B$1&",InputChoice1:=Close,InputChoice2:=Close)", "FG", "", "Close",$B$2, "0", "all","", "","True","T")/100 -> 0.483871432
A4: =Symbols!B6 -> ENQ | C4: =RTD("cqg.rtd",,"StudyData", "Correlation("&$A$4&","&C$2&",Period:="&$B$1&",InputChoice1::=Close,InputChoice2::=Close)", "FG", "", "Close",$B$2, "0", "all","", "","True","T")/100 -> 0.1485265797 | D4: =RTD("cqg.rtd",,"StudyData", "Correlation("&$A$4&","&D$2&",Period:="&$B$1&",InputChoice1:=Close,InputChoice2:=Close)", "FG", "", "Close",$B$2, "0", "all","", "","True","T")/100 -> 0.300087799 | E4: =RTD("cqg.rtd",,"StudyData", "Correlation("&$A$4&","&E$2&",Period:="&$B$1&",InputChoice1:=Close,InputChoice2:=Close)", "FG", "", "Close",$B$2, "0", "all","", "","True","T")/100 -> 0.8739087776 | F4: =RTD("cqg.rtd",,"StudyData", "Correlation("&$A$4&","&F$2&",Period:="&$B$1&",InputChoice1:=Close,InputChoice2:=Close)", "FG", "", "Close",$B$2, "0", "all","", "","True","T")/100 -> 0.350443191 | G4: =RTD("cqg.rtd",,"StudyData", "Correlation("&$A$4&","&G$2&",Period:="&$B$1&",InputChoice1:=Close,InputChoice2:=Close)", "FG", "", "Close",$B$2, "0", "all","", "","True","T")/100 -> -0.2658685726 | H4: =RTD("cqg.rtd",,"StudyData", "Correlation("&$A$4&","&H$2&",Period:="&$B$1&",InputChoice1:=Close,InputChoice2:=Close)", "FG", "", "Close",$B$2, "0", "all","", "","True","T")/100 -> 0.0660410024 | I4: =RTD("cqg.rtd",,"StudyData", "Correlation("&$A$4&","&I$2&",Period:="&$B$1&",InputChoice1:=Close,InputChoice2:=Close)", "FG", "", "Close",$B$2, "0", "all","", "","True","T")/100 -> 0.2655247191 | J4: =RTD("cqg.rtd",,"StudyData", "Correlation("&$A$4&","&J$2&",Period:="&$B$1&",InputChoice1:=Close,InputChoice2:=Close)", "FG", "", "Close",$B$2, "0", "all","", "","True","T")/100 -> -0.5273955259 | K4: =RTD("cqg.rtd",,"StudyData", "Correlation("&$A$4&","&K$2&",Period:="&$B$1&",InputChoice1:=Close,InputChoice2:=Close)", "FG", "", "Close",$B$2, "0", "all","", "","True","T")/100 -> 0.3971187471 | L4: =RTD("cqg.rtd",,"StudyData", "Correlation("&$A$4&","&L$2&",Period:="&$B$1&",InputChoice1:=Close,InputChoice2:=Close)", "FG", "", "Close",$B$2, "0", "all","", "","True","T")/100 -> 0.4723335978
A5: =Symbols!B7 -> EMD | C5: =RTD("cqg.rtd",,"StudyData", "Correlation("&$A$5&","&C$2&",Period:="&$B$1&",InputChoice1:=Close,InputChoice2:=Close)", "FG", "", "Close",$B$2, "0", "all","", "","True","T")/100 -> 0.5887003483 | D5: =RTD("cqg.rtd",,"StudyData", "Correlation("&$A$5&","&D$2&",Period:="&$B$1&",InputChoice1:=Close,InputChoice2:=Close)", "FG", "", "Close",$B$2, "0", "all","", "","True","T")/100 -> 0.5834556294 | E5: =RTD("cqg.rtd",,"StudyData", "Correlation("&$A$5&","&E$2&",Period:="&$B$1&",InputChoice1:=Close,InputChoice2:=Close)", "FG", "", "Close",$B$2, "0", "all","", "","True","T")/100 -> 0.6584299342 | F5: =RTD("cqg.rtd",,"StudyData", "Correlation("&$A$5&","&F$2&",Period:="&$B$1&",InputChoice1:=Close,InputChoice2:=Close)", "FG", "", "Close",$B$2, "0", "all","", "","True","T")/100 -> 0.8008226982 | G5: =RTD("cqg.rtd",,"StudyData", "Correlation("&$A$5&","&G$2&",Period:="&$B$1&",InputChoice1:=Close,InputChoice2:=Close)", "FG", "", "Close",$B$2, "0", "all","", "","True","T")/100 -> -0.7766845611 | H5: =RTD("cqg.rtd",,"StudyData", "Correlation("&$A$5&","&H$2&",Period:="&$B$1&",InputChoice1:=Close,InputChoice2:=Close)", "FG", "", "Close",$B$2, "0", "all","", "","True","T")/100 -> -0.1520607217 | I5: =RTD("cqg.rtd",,"StudyData", "Correlation("&$A$5&","&I$2&",Period:="&$B$1&",InputChoice1:=Close,InputChoice2:=Close)", "FG", "", "Close",$B$2, "0", "all","", "","True","T")/100 -> -0.564511093 | J5: =RTD("cqg.rtd",,"StudyData", "Correlation("&$A$5&","&J$2&",Period:="&$B$1&",InputChoice1:=Close,InputChoice2:=Close)", "FG", "", "Close",$B$2, "0", "all","", "","True","T")/100 -> -0.5771775377 | K5: =RTD("cqg.rtd",,"StudyData", "Correlation("&$A$5&","&K$2&",Period:="&$B$1&",InputChoice1:=Close,InputChoice2:=Close)", "FG", "", "Close",$B$2, "0", "all","", "","True","T")/100 -> 0.9414160162 | L5: =RTD("cqg.rtd",,"StudyData", "Correlation("&$A$5&","&L$2&",Period:="&$B$1&",InputChoice1:=Close,InputChoice2:=Close)", "FG", "", "Close",$B$2, "0", "all","", "","True","T")/100 -> 0.8488217981
A6: =Symbols!B8 -> GCE | C6: =RTD("cqg.rtd",,"StudyData", "Correlation("&$A$6&","&C$2&",Period:="&$B$1&",InputChoice1:=Close,InputChoice2:=Close)", "FG", "", "Close",$B$2, "0", "all","", "","True","T")/100 -> 0.1221561015 | D6: =RTD("cqg.rtd",,"StudyData", "Correlation("&$A$6&","&D$2&",Period:="&$B$1&",InputChoice1:=Close,InputChoice2:=Close)", "FG", "", "Close",$B$2, "0", "all","", "","True","T")/100 -> 0.1388292136 | E6: =RTD("cqg.rtd",,"StudyData", "Correlation("&$A$6&","&E$2&",Period:="&$B$1&",InputChoice1:=Close,InputChoice2:=Close)", "FG", "", "Close",$B$2, "0", "all","", "","True","T")/100 -> 0.2663595848 | F6: =RTD("cqg.rtd",,"StudyData", "Correlation("&$A$6&","&F$2&",Period:="&$B$1&",InputChoice1:=Close,InputChoice2:=Close)", "FG", "", "Close",$B$2, "0", "all","", "","True","T")/100 -> 0.0976633377 | G6: =RTD("cqg.rtd",,"StudyData", "Correlation("&$A$6&","&G$2&",Period:="&$B$1&",InputChoice1:=Close,InputChoice2:=Close)", "FG", "", "Close",$B$2, "0", "all","", "","True","T")/100 -> -0.3337297588 | H6: =RTD("cqg.rtd",,"StudyData", "Correlation("&$A$6&","&H$2&",Period:="&$B$1&",InputChoice1:=Close,InputChoice2:=Close)", "FG", "", "Close",$B$2, "0", "all","", "","True","T")/100 -> 0.8993703882 | I6: =RTD("cqg.rtd",,"StudyData", "Correlation("&$A$6&","&I$2&",Period:="&$B$1&",InputChoice1:=Close,InputChoice2:=Close)", "FG", "", "Close",$B$2, "0", "all","", "","True","T")/100 -> -0.3196338358 | J6: =RTD("cqg.rtd",,"StudyData", "Correlation("&$A$6&","&J$2&",Period:="&$B$1&",InputChoice1:=Close,InputChoice2:=Close)", "FG", "", "Close",$B$2, "0", "all","", "","True","T")/100 -> -0.566523724 | K6: =RTD("cqg.rtd",,"StudyData", "Correlation("&$A$6&","&K$2&",Period:="&$B$1&",InputChoice1:=Close,InputChoice2:=Close)", "FG", "", "Close",$B$2, "0", "all","", "","True","T")/100 -> 0.328701677 | L6: =RTD("cqg.rtd",,"StudyData", "Correlation("&$A$6&","&L$2&",Period:="&$B$1&",InputChoice1:=Close,InputChoice2:=Close)", "FG", "", "Close",$B$2, "0", "all","", "","True","T")/100 -> 0.2051516231
A7: =Symbols!B9 -> DXE | C7: =RTD("cqg.rtd",,"StudyData", "Correlation("&$A$7&","&C$2&",Period:="&$B$1&",InputChoice1:=Close,InputChoice2:=Close)", "FG", "", "Close",$B$2, "0", "all","", "","True","T")/100 -> 0.8196848506 | D7: =RTD("cqg.rtd",,"StudyData", "Correlation("&$A$7&","&D$2&",Period:="&$B$1&",InputChoice1:=Close,InputChoice2:=Close)", "FG", "", "Close",$B$2, "0", "all","", "","True","T")/100 -> 0.7340567003 | E7: =RTD("cqg.rtd",,"StudyData", "Correlation("&$A$7&","&E$2&",Period:="&$B$1&",InputChoice1:=Close,InputChoice2:=Close)", "FG", "", "Close",$B$2, "0", "all","", "","True","T")/100 -> 0.2284975337 | F7: =RTD("cqg.rtd",,"StudyData", "Correlation("&$A$7&","&F$2&",Period:="&$B$1&",InputChoice1:=Close,InputChoice2:=Close)", "FG", "", "Close",$B$2, "0", "all","", "","True","T")/100 -> 0.8230206714 | G7: =RTD("cqg.rtd",,"StudyData", "Correlation("&$A$7&","&G$2&",Period:="&$B$1&",InputChoice1:=Close,InputChoice2:=Close)", "FG", "", "Close",$B$2, "0", "all","", "","True","T")/100 -> -0.9015521862 | H7: =RTD("cqg.rtd",,"StudyData", "Correlation("&$A$7&","&H$2&",Period:="&$B$1&",InputChoice1:=Close,InputChoice2:=Close)", "FG", "", "Close",$B$2, "0", "all","", "","True","T")/100 -> -0.2171962387 | I7: =RTD("cqg.rtd",,"StudyData", "Correlation("&$A$7&","&I$2&",Period:="&$B$1&",InputChoice1:=Close,InputChoice2:=Close)", "FG", "", "Close",$B$2, "0", "all","", "","True","T")/100 -> -0.8632805696 | J7: =RTD("cqg.rtd",,"StudyData", "Correlation("&$A$7&","&J$2&",Period:="&$B$1&",InputChoice1:=Close,InputChoice2:=Close)", "FG", "", "Close",$B$2, "0", "all","", "","True","T")/100 -> -0.5120935962 | K7: =RTD("cqg.rtd",,"StudyData", "Correlation("&$A$7&","&K$2&",Period:="&$B$1&",InputChoice1:=Close,InputChoice2:=Close)", "FG", "", "Close",$B$2, "0", "all","", "","True","T")/100 -> 0.8661741982 | L7: =RTD("cqg.rtd",,"StudyData", "Correlation("&$A$7&","&L$2&",Period:="&$B$1&",InputChoice1:=Close,InputChoice2:=Close)", "FG", "", "Close",$B$2, "0", "all","", "","True","T")/100 -> 0.7528931259
A8: =Symbols!B10 -> EU6 | C8: =RTD("cqg.rtd",,"StudyData", "Correlation("&$A$8&","&C$2&",Period:="&$B$1&",InputChoice1:=Close,InputChoice2:=Close)", "FG", "", "Close",$B$2, "0", "all","", "","True","T")/100 -> -0.8346359604 | D8: =RTD("cqg.rtd",,"StudyData", "Correlation("&$A$8&","&D$2&",Period:="&$B$1&",InputChoice1:=Close,InputChoice2:=Close)", "FG", "", "Close",$B$2, "0", "all","", "","True","T")/100 -> -0.7738761912 | E8: =RTD("cqg.rtd",,"StudyData", "Correlation("&$A$8&","&E$2&",Period:="&$B$1&",InputChoice1:=Close,InputChoice2:=Close)", "FG", "", "Close",$B$2, "0", "all","", "","True","T")/100 -> -0.2859883551 | F8: =RTD("cqg.rtd",,"StudyData", "Correlation("&$A$8&","&F$2&",Period:="&$B$1&",InputChoice1:=Close,InputChoice2:=Close)", "FG", "", "Close",$B$2, "0", "all","", "","True","T")/100 -> -0.8582954311 | G8: =RTD("cqg.rtd",,"StudyData", "Correlation("&$A$8&","&G$2&",Period:="&$B$1&",InputChoice1:=Close,InputChoice2:=Close)", "FG", "", "Close",$B$2, "0", "all","", "","True","T")/100 -> 0.9399985697 | H8: =RTD("cqg.rtd",,"StudyData", "Correlation("&$A$8&","&H$2&",Period:="&$B$1&",InputChoice1:=Close,InputChoice2:=Close)", "FG", "", "Close",$B$2, "0", "all","", "","True","T")/100 -> 0.1282061705 | I8: =RTD("cqg.rtd",,"StudyData", "Correlation("&$A$8&","&I$2&",Period:="&$B$1&",InputChoice1:=Close,InputChoice2:=Close)", "FG", "", "Close",$B$2, "0", "all","", "","True","T")/100 -> 0.8487254294 | J8: =RTD("cqg.rtd",,"StudyData", "Correlation("&$A$8&","&J$2&",Period:="&$B$1&",InputChoice1:=Close,InputChoice2:=Close)", "FG", "", "Close",$B$2, "0", "all","", "","True","T")/100 -> 0.6411644428 | K8: =RTD("cqg.rtd",,"StudyData", "Correlation("&$A$8&","&K$2&",Period:="&$B$1&",InputChoice1:=Close,InputChoice2:=Close)", "FG", "", "Close",$B$2, "0", "all","", "","True","T")/100 -> -0.9236491644 | L8: =RTD("cqg.rtd",,"StudyData", "Correlation("&$A$8&","&L$2&",Period:="&$B$1&",InputChoice1:=Close,InputChoice2:=Close)", "FG", "", "Close",$B$2, "0", "all","", "","True","T")/100 -> -0.8125673723
A9: =Symbols!B11 -> JY6 | C9: =RTD("cqg.rtd",,"StudyData", "Correlation("&$A$9&","&C$2&",Period:="&$B$1&",InputChoice1:=Close,InputChoice2:=Close)", "FG", "", "Close",$B$2, "0", "all","", "","True","T")/100 -> 0.0140909001 | D9: =RTD("cqg.rtd",,"StudyData", "Correlation("&$A$9&","&D$2&",Period:="&$B$1&",InputChoice1:=Close,InputChoice2:=Close)", "FG", "", "Close",$B$2, "0", "all","", "","True","T")/100 -> 0.1737933167 | E9: =RTD("cqg.rtd",,"StudyData", "Correlation("&$A$9&","&E$2&",Period:="&$B$1&",InputChoice1:=Close,InputChoice2:=Close)", "FG", "", "Close",$B$2, "0", "all","", "","True","T")/100 -> 0.2356219612 | F9: =RTD("cqg.rtd",,"StudyData", "Correlation("&$A$9&","&F$2&",Period:="&$B$1&",InputChoice1:=Close,InputChoice2:=Close)", "FG", "", "Close",$B$2, "0", "all","", "","True","T")/100 -> 0.0590846122 | G9: =RTD("cqg.rtd",,"StudyData", "Correlation("&$A$9&","&G$2&",Period:="&$B$1&",InputChoice1:=Close,InputChoice2:=Close)", "FG", "", "Close",$B$2, "0", "all","", "","True","T")/100 -> -0.2834675667 | H9: =RTD("cqg.rtd",,"StudyData", "Correlation("&$A$9&","&H$2&",Period:="&$B$1&",InputChoice1:=Close,InputChoice2:=Close)", "FG", "", "Close",$B$2, "0", "all","", "","True","T")/100 -> 0.3089766489 | I9: =RTD("cqg.rtd",,"StudyData", "Correlation("&$A$9&","&I$2&",Period:="&$B$1&",InputChoice1:=Close,InputChoice2:=Close)", "FG", "", "Close",$B$2, "0", "all","", "","True","T")/100 -> 0.0412950262 | J9: =RTD("cqg.rtd",,"StudyData", "Correlation("&$A$9&","&J$2&",Period:="&$B$1&",InputChoice1:=Close,InputChoice2:=Close)", "FG", "", "Close",$B$2, "0", "all","", "","True","T")/100 -> -0.789524587 | K9: =RTD("cqg.rtd",,"StudyData", "Correlation("&$A$9&","&K$2&",Period:="&$B$1&",InputChoice1:=Close,InputChoice2:=Close)", "FG", "", "Close",$B$2, "0", "all","", "","True","T")/100 -> 0.3897790886 | L9: =RTD("cqg.rtd",,"StudyData", "Correlation("&$A$9&","&L$2&",Period:="&$B$1&",InputChoice1:=Close,InputChoice2:=Close)", "FG", "", "Close",$B$2, "0", "all","", "","True","T")/100 -> 0.2378129253
A10: =Symbols!B12 -> DA6 | C10: =RTD("cqg.rtd",,"StudyData", "Correlation("&$A$10&","&C$2&",Period:="&$B$1&",InputChoice1:=Close,InputChoice2:=Close)", "FG", "", "Close",$B$2, "0", "all","", "","True","T")/100 -> -0.6048081676 | D10: =RTD("cqg.rtd",,"StudyData", "Correlation("&$A$10&","&D$2&",Period:="&$B$1&",InputChoice1:=Close,InputChoice2:=Close)", "FG", "", "Close",$B$2, "0", "all","", "","True","T")/100 -> -0.4602335534 | E10: =RTD("cqg.rtd",,"StudyData", "Correlation("&$A$10&","&E$2&",Period:="&$B$1&",InputChoice1:=Close,InputChoice2:=Close)", "FG", "", "Close",$B$2, "0", "all","", "","True","T")/100 -> 0.142852722 | F10: =RTD("cqg.rtd",,"StudyData", "Correlation("&$A$10&","&F$2&",Period:="&$B$1&",InputChoice1:=Close,InputChoice2:=Close)", "FG", "", "Close",$B$2, "0", "all","", "","True","T")/100 -> -0.5221539068 | G10: =RTD("cqg.rtd",,"StudyData", "Correlation("&$A$10&","&G$2&",Period:="&$B$1&",InputChoice1:=Close,InputChoice2:=Close)", "FG", "", "Close",$B$2, "0", "all","", "","True","T")/100 -> 0.3874033988 | H10: =RTD("cqg.rtd",,"StudyData", "Correlation("&$A$10&","&H$2&",Period:="&$B$1&",InputChoice1:=Close,InputChoice2:=Close)", "FG", "", "Close",$B$2, "0", "all","", "","True","T")/100 -> 0.5234829112 | I10: =RTD("cqg.rtd",,"StudyData", "Correlation("&$A$10&","&I$2&",Period:="&$B$1&",InputChoice1:=Close,InputChoice2:=Close)", "FG", "", "Close",$B$2, "0", "all","", "","True","T")/100 -> 0.5525345005 | J10: =RTD("cqg.rtd",,"StudyData", "Correlation("&$A$10&","&J$2&",Period:="&$B$1&",InputChoice1:=Close,InputChoice2:=Close)", "FG", "", "Close",$B$2, "0", "all","", "","True","T")/100 -> -0.1118109697 | K10: =RTD("cqg.rtd",,"StudyData", "Correlation("&$A$10&","&K$2&",Period:="&$B$1&",InputChoice1:=Close,InputChoice2:=Close)", "FG", "", "Close",$B$2, "0", "all","", "","True","T")/100 -> -0.3348921954 | L10: =RTD("cqg.rtd",,"StudyData", "Correlation("&$A$10&","&L$2&",Period:="&$B$1&",InputChoice1:=Close,InputChoice2:=Close)", "FG", "", "Close",$B$2, "0", "all","", "","True","T")/100 -> -0.4112950053
A11: =Symbols!B13 -> BP6 | C11: =RTD("cqg.rtd",,"StudyData", "Correlation("&$A$11&","&C$2&",Period:="&$B$1&",InputChoice1:=Close,InputChoice2:=Close)", "FG", "", "Close",$B$2, "0", "all","", "","True","T")/100 -> -0.6175438615 | D11: =RTD("cqg.rtd",,"StudyData", "Correlation("&$A$11&","&D$2&",Period:="&$B$1&",InputChoice1:=Close,InputChoice2:=Close)", "FG", "", "Close",$B$2, "0", "all","", "","True","T")/100 -> -0.4454521933 | E11: =RTD("cqg.rtd",,"StudyData", "Correlation("&$A$11&","&E$2&",Period:="&$B$1&",InputChoice1:=Close,InputChoice2:=Close)", "FG", "", "Close",$B$2, "0", "all","", "","True","T")/100 -> -0.044355273 | F11: =RTD("cqg.rtd",,"StudyData", "Correlation("&$A$11&","&F$2&",Period:="&$B$1&",InputChoice1:=Close,InputChoice2:=Close)", "FG", "", "Close",$B$2, "0", "all","", "","True","T")/100 -> -0.5414582035 | G11: =RTD("cqg.rtd",,"StudyData", "Correlation("&$A$11&","&G$2&",Period:="&$B$1&",InputChoice1:=Close,InputChoice2:=Close)", "FG", "", "Close",$B$2, "0", "all","", "","True","T")/100 -> 0.4545778784 | H11: =RTD("cqg.rtd",,"StudyData", "Correlation("&$A$11&","&H$2&",Period:="&$B$1&",InputChoice1:=Close,InputChoice2:=Close)", "FG", "", "Close",$B$2, "0", "all","", "","True","T")/100 -> 0.3849366179 | I11: =RTD("cqg.rtd",,"StudyData", "Correlation("&$A$11&","&I$2&",Period:="&$B$1&",InputChoice1:=Close,InputChoice2:=Close)", "FG", "", "Close",$B$2, "0", "all","", "","True","T")/100 -> 0.6343058211 | J11: =RTD("cqg.rtd",,"StudyData", "Correlation("&$A$11&","&J$2&",Period:="&$B$1&",InputChoice1:=Close,InputChoice2:=Close)", "FG", "", "Close",$B$2, "0", "all","", "","True","T")/100 -> -0.1064017152 | K11: =RTD("cqg.rtd",,"StudyData", "Correlation("&$A$11&","&K$2&",Period:="&$B$1&",InputChoice1:=Close,InputChoice2:=Close)", "FG", "", "Close",$B$2, "0", "all","", "","True","T")/100 -> -0.4220065309 | L11: =RTD("cqg.rtd",,"StudyData", "Correlation("&$A$11&","&L$2&",Period:="&$B$1&",InputChoice1:=Close,InputChoice2:=Close)", "FG", "", "Close",$B$2, "0", "all","", "","True","T")/100 -> -0.4469827138
A12: =Symbols!B14 -> MX6 | C12: =RTD("cqg.rtd",,"StudyData", "Correlation("&$A$12&","&C$2&",Period:="&$B$1&",InputChoice1:=Close,InputChoice2:=Close)", "FG", "", "Close",$B$2, "0", "all","", "","True","T")/100 -> -0.511356083 | D12: =RTD("cqg.rtd",,"StudyData", "Correlation("&$A$12&","&D$2&",Period:="&$B$1&",InputChoice1:=Close,InputChoice2:=Close)", "FG", "", "Close",$B$2, "0", "all","", "","True","T")/100 -> -0.341354294 | E12: =RTD("cqg.rtd",,"StudyData", "Correlation("&$A$12&","&E$2&",Period:="&$B$1&",InputChoice1:=Close,InputChoice2:=Close)", "FG", "", "Close",$B$2, "0", "all","", "","True","T")/100 -> 0.1698779146 | F12: =RTD("cqg.rtd",,"StudyData", "Correlation("&$A$12&","&F$2&",Period:="&$B$1&",InputChoice1:=Close,InputChoice2:=Close)", "FG", "", "Close",$B$2, "0", "all","", "","True","T")/100 -> -0.3547582042 | G12: =RTD("cqg.rtd",,"StudyData", "Correlation("&$A$12&","&G$2&",Period:="&$B$1&",InputChoice1:=Close,InputChoice2:=Close)", "FG", "", "Close",$B$2, "0", "all","", "","True","T")/100 -> -0.0346235099 | H12: =RTD("cqg.rtd",,"StudyData", "Correlation("&$A$12&","&H$2&",Period:="&$B$1&",InputChoice1:=Close,InputChoice2:=Close)", "FG", "", "Close",$B$2, "0", "all","", "","True","T")/100 -> 0.5870908319 | I12: =RTD("cqg.rtd",,"StudyData", "Correlation("&$A$12&","&I$2&",Period:="&$B$1&",InputChoice1:=Close,InputChoice2:=Close)", "FG", "", "Close",$B$2, "0", "all","", "","True","T")/100 -> 0.1148846539 | J12: =RTD("cqg.rtd",,"StudyData", "Correlation("&$A$12&","&J$2&",Period:="&$B$1&",InputChoice1:=Close,InputChoice2:=Close)", "FG", "", "Close",$B$2, "0", "all","", "","True","T")/100 -> -0.545408717 | K12: =RTD("cqg.rtd",,"StudyData", "Correlation("&$A$12&","&K$2&",Period:="&$B$1&",InputChoice1:=Close,InputChoice2:=Close)", "FG", "", "Close",$B$2, "0", "all","", "","True","T")/100 -> 0.184834262 | L12: =RTD("cqg.rtd",,"StudyData", "Correlation("&$A$12&","&L$2&",Period:="&$B$1&",InputChoice1:=Close,InputChoice2:=Close)", "FG", "", "Close",$B$2, "0", "all","", "","True","T")/100 -> -0.1702279231
A15: =$A$3 -> EP | B15: =$C$2 -> DD | C15: =RTD("cqg.rtd",,"StudyData", "Correlation("&A15&","&B15&",Period:="&$B$1&",InputChoice1:=Close,InputChoice2:=Close)", "FG", "", "Close",$B$2, "0", "all","", "","True","T")/100 -> 0.1361500787 | D15: =RANK(C15,$C$15:$C$114,0)+COUNTIF($C$15:C15,C15)-1 -> 49 | E15: =A15&" vs "&B15 -> EP vs DD | F15: =C15 -> 0.1361500787 | G15: 1 | H15: =IFERROR(VLOOKUP(G15,$D$15:$E$114,2,FALSE),"") -> EP vs YM | I15: =IFERROR(VLOOKUP(G15,$D$15:$F$114,3,FALSE),"") -> 0.9565935308 | J15: =IF(I15>0,I15,I15*-1) -> 0.9565935308 | K15: =IF(I15<0,I15*-1,"") ->  | L15: =IF(K15="",J15,J15*-1) -> 0.9565935308
A16: =$A$3 -> EP | B16: =$D$2 -> DSX | C16: =RTD("cqg.rtd",,"StudyData", "Correlation("&A16&","&B16&",Period:="&$B$1&",InputChoice1:=Close,InputChoice2:=Close)", "FG", "", "Close",$B$2, "0", "all","", "","True","T")/100 -> 0.2229961927 | D16: =RANK(C16,$C$15:$C$114,0)+COUNTIF($C$15:C16,C16)-1 -> 40 | E16: =A16&" vs "&B16 -> EP vs DSX | F16: =C16 -> 0.2229961927 | G16: =G15+1 -> 2 | H16: =IFERROR(VLOOKUP(G16,$D$15:$E$114,2,FALSE),"") -> EMD vs TFE | I16: =IFERROR(VLOOKUP(G16,$D$15:$F$114,3,FALSE),"") -> 0.9414160162 | J16: =IF(I16>0,I16,I16*-1) -> 0.9414160162 | K16: =IF(I16<0,I16*-1,"") ->  | L16: =IF(K16="",J16,J16*-1) -> 0.9414160162
A17: EP | B17: =$E$2 -> YM | C17: =RTD("cqg.rtd",,"StudyData", "Correlation("&A17&","&B17&",Period:="&$B$1&",InputChoice1:=Close,InputChoice2:=Close)", "FG", "", "Close",$B$2, "0", "all","", "","True","T")/100 -> 0.9565935308 | D17: =RANK(C17,$C$15:$C$114,0)+COUNTIF($C$15:C17,C17)-1 -> 1 | E17: EP vs YM | F17: 0.9565935308 | G17: =G16+1 -> 3 | H17: EU6 vs CLE | I17: 0.9399985697 | J17: 0.9399985697 | L17: 0.9399985697
A18: EP | B18: =$F$2 -> PIL | C18: =RTD("cqg.rtd",,"StudyData", "Correlation("&A18&","&B18&",Period:="&$B$1&",InputChoice1:=Close,InputChoice2:=Close)", "FG", "", "Close",$B$2, "0", "all","", "","True","T")/100 -> 0.3882386228 | D18: =RANK(C18,$C$15:$C$114,0)+COUNTIF($C$15:C18,C18)-1 -> 28 | E18: EP vs PIL | F18: 0.3882386228 | G18: 4 | H18: GCE vs PLE | I18: 0.8993703882 | J18: 0.8993703882 | L18: 0.8993703882
A19: EP | B19: =$G$2 -> CLE | C19: =RTD("cqg.rtd",,"StudyData", "Correlation("&A19&","&B19&",Period:="&$B$1&",InputChoice1:=Close,InputChoice2:=Close)", "FG", "", "Close",$B$2, "0", "all","", "","True","T")/100 -> -0.2403307442 | D19: =RANK(C19,$C$15:$C$114,0)+COUNTIF($C$15:C19,C19)-1 -> 66 | E19: EP vs CLE | F19: -0.2403307442 | G19: 5 | H19: ENQ vs YM | I19: 0.8739087776 | J19: 0.8739087776 | L19: 0.8739087776
A20: EP | B20: =$H$2 -> PLE | C20: =RTD("cqg.rtd",,"StudyData", "Correlation("&A20&","&B20&",Period:="&$B$1&",InputChoice1:=Close,InputChoice2:=Close)", "FG", "", "Close",$B$2, "0", "all","", "","True","T")/100 -> -0.0958997522 | D20: =RANK(C20,$C$15:$C$114,0)+COUNTIF($C$15:C20,C20)-1 -> 60 | E20: EP vs PLE | F20: -0.0958997522 | G20: 6 | H20: DXE vs TFE | I20: 0.8661741982 | J20: 0.8661741982 | L20: 0.8661741982
A21: EP | B21: =$I$2 -> RBE | C21: =RTD("cqg.rtd",,"StudyData", "Correlation("&A21&","&B21&",Period:="&$B$1&",InputChoice1:=Close,InputChoice2:=Close)", "FG", "", "Close",$B$2, "0", "all","", "","True","T")/100 -> 0.1752690711 | D21: =RANK(C21,$C$15:$C$114,0)+COUNTIF($C$15:C21,C21)-1 -> 43 | E21: EP vs RBE | F21: 0.1752690711 | G21: 7 | H21: EMD vs QFA | I21: 0.8488217981 | J21: 0.8488217981 | L21: 0.8488217981
A22: EP | B22: =$J$2 -> NGE | C22: =RTD("cqg.rtd",,"StudyData", "Correlation("&A22&","&B22&",Period:="&$B$1&",InputChoice1:=Close,InputChoice2:=Close)", "FG", "", "Close",$B$2, "0", "all","", "","True","T")/100 -> -0.2532428907 | D22: =RANK(C22,$C$15:$C$114,0)+COUNTIF($C$15:C22,C22)-1 -> 67 | E22: EP vs NGE | F22: -0.2532428907 | G22: 8 | H22: EU6 vs RBE | I22: 0.8487254294 | J22: 0.8487254294 | L22: 0.8487254294
A23: EP | B23: =$K$2 -> TFE | C23: =RTD("cqg.rtd",,"StudyData", "Correlation("&A23&","&B23&",Period:="&$B$1&",InputChoice1:=Close,InputChoice2:=Close)", "FG", "", "Close",$B$2, "0", "all","", "","True","T")/100 -> 0.437226619 | D23: =RANK(C23,$C$15:$C$114,0)+COUNTIF($C$15:C23,C23)-1 -> 25 | E23: EP vs TFE | F23: 0.437226619 | G23: 9 | H23: DXE vs PIL | I23: 0.8230206714 | J23: 0.8230206714 | L23: 0.8230206714
A24: EP | B24: =$L$2 -> QFA | C24: =RTD("cqg.rtd",,"StudyData", "Correlation("&A24&","&B24&",Period:="&$B$1&",InputChoice1:=Close,InputChoice2:=Close)", "FG", "", "Close",$B$2, "0", "all","", "","True","T")/100 -> 0.483871432 | D24: =RANK(C24,$C$15:$C$114,0)+COUNTIF($C$15:C24,C24)-1 -> 22 | E24: EP vs QFA | F24: 0.483871432 | G24: 10 | H24: DXE vs DD | I24: 0.8196848506 | J24: 0.8196848506 | L24: 0.8196848506
A25: =$A$4 -> ENQ | B25: =$C$2 -> DD | C25: =RTD("cqg.rtd",,"StudyData", "Correlation("&A25&","&B25&",Period:="&$B$1&",InputChoice1:=Close,InputChoice2:=Close)", "FG", "", "Close",$B$2, "0", "all","", "","True","T")/100 -> 0.1485265797 | D25: =RANK(C25,$C$15:$C$114,0)+COUNTIF($C$15:C25,C25)-1 -> 46 | E25: ENQ vs DD | F25: 0.1485265797 | G25: 11 | H25: EMD vs PIL | I25: 0.8008226982 | J25: 0.8008226982 | L25: 0.8008226982
A26: ENQ | B26: =$D$2 -> DSX | C26: =RTD("cqg.rtd",,"StudyData", "Correlation("&A26&","&B26&",Period:="&$B$1&",InputChoice1:=Close,InputChoice2:=Close)", "FG", "", "Close",$B$2, "0", "all","", "","True","T")/100 -> 0.300087799 | D26: =RANK(C26,$C$15:$C$114,0)+COUNTIF($C$15:C26,C26)-1 -> 34 | E26: ENQ vs DSX | F26: 0.300087799 | G26: 12 | H26: DXE vs QFA | I26: 0.7528931259 | J26: 0.7528931259 | L26: 0.7528931259
A27: ENQ | B27: =$E$2 -> YM | C27: =RTD("cqg.rtd",,"StudyData", "Correlation("&A27&","&B27&",Period:="&$B$1&",InputChoice1:=Close,InputChoice2:=Close)", "FG", "", "Close",$B$2, "0", "all","", "","True","T")/100 -> 0.8739087776 | D27: =RANK(C27,$C$15:$C$114,0)+COUNTIF($C$15:C27,C27)-1 -> 5 | E27: ENQ vs YM | F27: 0.8739087776 | G27: 13 | H27: DXE vs DSX | I27: 0.7340567003 | J27: 0.7340567003 | L27: 0.7340567003
A28: ENQ | B28: =$F$2 -> PIL | C28: =RTD("cqg.rtd",,"StudyData", "Correlation("&A28&","&B28&",Period:="&$B$1&",InputChoice1:=Close,InputChoice2:=Close)", "FG", "", "Close",$B$2, "0", "all","", "","True","T")/100 -> 0.350443191 | D28: =RANK(C28,$C$15:$C$114,0)+COUNTIF($C$15:C28,C28)-1 -> 31 | E28: ENQ vs PIL | F28: 0.350443191 | G28: 14 | H28: EMD vs YM | I28: 0.6584299342 | J28: 0.6584299342 | L28: 0.6584299342
A29: ENQ | B29: =$G$2 -> CLE | C29: =RTD("cqg.rtd",,"StudyData", "Correlation("&A29&","&B29&",Period:="&$B$1&",InputChoice1:=Close,InputChoice2:=Close)", "FG", "", "Close",$B$2, "0", "all","", "","True","T")/100 -> -0.2658685726 | D29: =RANK(C29,$C$15:$C$114,0)+COUNTIF($C$15:C29,C29)-1 -> 68 | E29: ENQ vs CLE | F29: -0.2658685726 | G29: 15 | H29: EU6 vs NGE | I29: 0.6411644428 | J29: 0.6411644428 | L29: 0.6411644428
A30: ENQ | B30: =$H$2 -> PLE | C30: =RTD("cqg.rtd",,"StudyData", "Correlation("&A30&","&B30&",Period:="&$B$1&",InputChoice1:=Close,InputChoice2:=Close)", "FG", "", "Close",$B$2, "0", "all","", "","True","T")/100 -> 0.0660410024 | D30: =RANK(C30,$C$15:$C$114,0)+COUNTIF($C$15:C30,C30)-1 -> 54 | E30: ENQ vs PLE | F30: 0.0660410024 | G30: 16 | H30: BP6 vs RBE | I30: 0.6343058211 | J30: 0.6343058211 | L30: 0.6343058211
A31: ENQ | B31: =$I$2 -> RBE | C31: =RTD("cqg.rtd",,"StudyData", "Correlation("&A31&","&B31&",Period:="&$B$1&",InputChoice1:=Close,InputChoice2:=Close)", "FG", "", "Close",$B$2, "0", "all","", "","True","T")/100 -> 0.2655247191 | D31: =RANK(C31,$C$15:$C$114,0)+COUNTIF($C$15:C31,C31)-1 -> 36 | E31: ENQ vs RBE | F31: 0.2655247191 | G31: 17 | H31: EMD vs DD | I31: 0.5887003483 | J31: 0.5887003483 | L31: 0.5887003483
A32: ENQ | B32: =$J$2 -> NGE | C32: =RTD("cqg.rtd",,"StudyData", "Correlation("&A32&","&B32&",Period:="&$B$1&",InputChoice1:=Close,InputChoice2:=Close)", "FG", "", "Close",$B$2, "0", "all","", "","True","T")/100 -> -0.5273955259 | D32: =RANK(C32,$C$15:$C$114,0)+COUNTIF($C$15:C32,C32)-1 -> 84 | E32: ENQ vs NGE | F32: -0.5273955259 | G32: 18 | H32: MX6 vs PLE | I32: 0.5870908319 | J32: 0.5870908319 | L32: 0.5870908319
A33: ENQ | B33: =$K$2 -> TFE | C33: =RTD("cqg.rtd",,"StudyData", "Correlation("&A33&","&B33&",Period:="&$B$1&",InputChoice1:=Close,InputChoice2:=Close)", "FG", "", "Close",$B$2, "0", "all","", "","True","T")/100 -> 0.3971187471 | D33: =RANK(C33,$C$15:$C$114,0)+COUNTIF($C$15:C33,C33)-1 -> 26 | E33: ENQ vs TFE | F33: 0.3971187471 | G33: 19 | H33: EMD vs DSX | I33: 0.5834556294 | J33: 0.5834556294 | L33: 0.5834556294
A34: ENQ | B34: =$L$2 -> QFA | C34: =RTD("cqg.rtd",,"StudyData", "Correlation("&A34&","&B34&",Period:="&$B$1&",InputChoice1:=Close,InputChoice2:=Close)", "FG", "", "Close",$B$2, "0", "all","", "","True","T")/100 -> 0.4723335978 | D34: =RANK(C34,$C$15:$C$114,0)+COUNTIF($C$15:C34,C34)-1 -> 23 | E34: ENQ vs QFA | F34: 0.4723335978 | G34: 20 | H34: DA6 vs RBE | I34: 0.5525345005 | J34: 0.5525345005 | L34: 0.5525345005
A35: =$A$5 -> EMD | B35: =$C$2 -> DD | C35: =RTD("cqg.rtd",,"StudyData", "Correlation("&A35&","&B35&",Period:="&$B$1&",InputChoice1:=Close,InputChoice2:=Close)", "FG", "", "Close",$B$2, "0", "all","", "","True","T")/100 -> 0.5887003483 | D35: =RANK(C35,$C$15:$C$114,0)+COUNTIF($C$15:C35,C35)-1 -> 17 | E35: EMD vs DD | F35: 0.5887003483 | G35: 21 | H35: DA6 vs PLE | I35: 0.5234829112 | J35: 0.5234829112 | L35: 0.5234829112
A36: EMD | B36: =$D$2 -> DSX | C36: =RTD("cqg.rtd",,"StudyData", "Correlation("&A36&","&B36&",Period:="&$B$1&",InputChoice1:=Close,InputChoice2:=Close)", "FG", "", "Close",$B$2, "0", "all","", "","True","T")/100 -> 0.5834556294 | D36: =RANK(C36,$C$15:$C$114,0)+COUNTIF($C$15:C36,C36)-1 -> 19 | E36: EMD vs DSX | F36: 0.5834556294 | G36: 22 | H36: EP vs QFA | I36: 0.483871432 | J36: 0.483871432 | L36: 0.483871432
A37: EMD | B37: =$E$2 -> YM | C37: =RTD("cqg.rtd",,"StudyData", "Correlation("&A37&","&B37&",Period:="&$B$1&",InputChoice1:=Close,InputChoice2:=Close)", "FG", "", "Close",$B$2, "0", "all","", "","True","T")/100 -> 0.6584299342 | D37: =RANK(C37,$C$15:$C$114,0)+COUNTIF($C$15:C37,C37)-1 -> 14 | E37: EMD vs YM | F37: 0.6584299342 | G37: 23 | H37: ENQ vs QFA | I37: 0.4723335978 | J37: 0.4723335978 | L37: 0.4723335978
A38: EMD | B38: =$F$2 -> PIL | C38: =RTD("cqg.rtd",,"StudyData", "Correlation("&A38&","&B38&",Period:="&$B$1&",InputChoice1:=Close,InputChoice2:=Close)", "FG", "", "Close",$B$2, "0", "all","", "","True","T")/100 -> 0.8008226982 | D38: =RANK(C38,$C$15:$C$114,0)+COUNTIF($C$15:C38,C38)-1 -> 11 | E38: EMD vs PIL | F38: 0.8008226982 | G38: 24 | H38: BP6 vs CLE | I38: 0.4545778784 | J38: 0.4545778784 | L38: 0.4545778784
A39: EMD | B39: =$G$2 -> CLE | C39: =RTD("cqg.rtd",,"StudyData", "Correlation("&A39&","&B39&",Period:="&$B$1&",InputChoice1:=Close,InputChoice2:=Close)", "FG", "", "Close",$B$2, "0", "all","", "","True","T")/100 -> -0.7766845611 | D39: =RANK(C39,$C$15:$C$114,0)+COUNTIF($C$15:C39,C39)-1 -> 93 | E39: EMD vs CLE | F39: -0.7766845611 | G39: 25 | H39: EP vs TFE | I39: 0.437226619 | J39: 0.437226619 | L39: 0.437226619
A40: EMD | B40: =$H$2 -> PLE | C40: =RTD("cqg.rtd",,"StudyData", "Correlation("&A40&","&B40&",Period:="&$B$1&",InputChoice1:=Close,InputChoice2:=Close)", "FG", "", "Close",$B$2, "0", "all","", "","True","T")/100 -> -0.1520607217 | D40: =RANK(C40,$C$15:$C$114,0)+COUNTIF($C$15:C40,C40)-1 -> 63 | E40: EMD vs PLE | F40: -0.1520607217 | G40: 26 | H40: ENQ vs TFE | I40: 0.3971187471 | J40: 0.3971187471 | L40: 0.3971187471
A41: EMD | B41: =$I$2 -> RBE | C41: =RTD("cqg.rtd",,"StudyData", "Correlation("&A41&","&B41&",Period:="&$B$1&",InputChoice1:=Close,InputChoice2:=Close)", "FG", "", "Close",$B$2, "0", "all","", "","True","T")/100 -> -0.564511093 | D41: =RANK(C41,$C$15:$C$114,0)+COUNTIF($C$15:C41,C41)-1 -> 87 | E41: EMD vs RBE | F41: -0.564511093 | G41: 27 | H41: JY6 vs TFE | I41: 0.3897790886 | J41: 0.3897790886 | L41: 0.3897790886
A42: EMD | B42: =$J$2 -> NGE | C42: =RTD("cqg.rtd",,"StudyData", "Correlation("&A42&","&B42&",Period:="&$B$1&",InputChoice1:=Close,InputChoice2:=Close)", "FG", "", "Close",$B$2, "0", "all","", "","True","T")/100 -> -0.5771775377 | D42: =RANK(C42,$C$15:$C$114,0)+COUNTIF($C$15:C42,C42)-1 -> 89 | E42: EMD vs NGE | F42: -0.5771775377 | G42: 28 | H42: EP vs PIL | I42: 0.3882386228 | J42: 0.3882386228 | L42: 0.3882386228
A43: EMD | B43: =$K$2 -> TFE | C43: =RTD("cqg.rtd",,"StudyData", "Correlation("&A43&","&B43&",Period:="&$B$1&",InputChoice1:=Close,InputChoice2:=Close)", "FG", "", "Close",$B$2, "0", "all","", "","True","T")/100 -> 0.9414160162 | D43: =RANK(C43,$C$15:$C$114,0)+COUNTIF($C$15:C43,C43)-1 -> 2 | E43: EMD vs TFE | F43: 0.9414160162 | G43: 29 | H43: DA6 vs CLE | I43: 0.3874033988 | J43: 0.3874033988 | L43: 0.3874033988
A44: EMD | B44: =$L$2 -> QFA | C44: =RTD("cqg.rtd",,"StudyData", "Correlation("&A44&","&B44&",Period:="&$B$1&",InputChoice1:=Close,InputChoice2:=Close)", "FG", "", "Close",$B$2, "0", "all","", "","True","T")/100 -> 0.8488217981 | D44: =RANK(C44,$C$15:$C$114,0)+COUNTIF($C$15:C44,C44)-1 -> 7 | E44: EMD vs QFA | F44: 0.8488217981 | G44: 30 | H44: BP6 vs PLE | I44: 0.3849366179 | J44: 0.3849366179 | L44: 0.3849366179
A45: =$A$6 -> GCE | B45: =$C$2 -> DD | C45: =RTD("cqg.rtd",,"StudyData", "Correlation("&A45&","&B45&",Period:="&$B$1&",InputChoice1:=Close,InputChoice2:=Close)", "FG", "", "Close",$B$2, "0", "all","", "","True","T")/100 -> 0.1221561015 | D45: =RANK(C45,$C$15:$C$114,0)+COUNTIF($C$15:C45,C45)-1 -> 51 | E45: GCE vs DD | F45: 0.1221561015 | G45: 31 | H45: ENQ vs PIL | I45: 0.350443191 | J45: 0.350443191 | L45: 0.350443191
A46: =$A$6 -> GCE | B46: =$D$2 -> DSX | C46: =RTD("cqg.rtd",,"StudyData", "Correlation("&A46&","&B46&",Period:="&$B$1&",InputChoice1:=Close,InputChoice2:=Close)", "FG", "", "Close",$B$2, "0", "all","", "","True","T")/100 -> 0.1388292136 | D46: =RANK(C46,$C$15:$C$114,0)+COUNTIF($C$15:C46,C46)-1 -> 48 | E46: GCE vs DSX | F46: 0.1388292136 | G46: 32 | H46: GCE vs TFE | I46: 0.328701677 | J46: 0.328701677 | L46: 0.328701677
A47: GCE | B47: =$E$2 -> YM | C47: =RTD("cqg.rtd",,"StudyData", "Correlation("&A47&","&B47&",Period:="&$B$1&",InputChoice1:=Close,InputChoice2:=Close)", "FG", "", "Close",$B$2, "0", "all","", "","True","T")/100 -> 0.2663595848 | D47: =RANK(C47,$C$15:$C$114,0)+COUNTIF($C$15:C47,C47)-1 -> 35 | E47: GCE vs YM | F47: 0.2663595848 | G47: 33 | H47: JY6 vs PLE | I47: 0.3089766489 | J47: 0.3089766489 | L47: 0.3089766489
A48: GCE | B48: =$F$2 -> PIL | C48: =RTD("cqg.rtd",,"StudyData", "Correlation("&A48&","&B48&",Period:="&$B$1&",InputChoice1:=Close,InputChoice2:=Close)", "FG", "", "Close",$B$2, "0", "all","", "","True","T")/100 -> 0.0976633377 | D48: =RANK(C48,$C$15:$C$114,0)+COUNTIF($C$15:C48,C48)-1 -> 53 | E48: GCE vs PIL | F48: 0.0976633377 | G48: 34 | H48: ENQ vs DSX | I48: 0.300087799 | J48: 0.300087799 | L48: 0.300087799
A49: GCE | B49: =$G$2 -> CLE | C49: =RTD("cqg.rtd",,"StudyData", "Correlation("&A49&","&B49&",Period:="&$B$1&",InputChoice1:=Close,InputChoice2:=Close)", "FG", "", "Close",$B$2, "0", "all","", "","True","T")/100 -> -0.3337297588 | D49: =RANK(C49,$C$15:$C$114,0)+COUNTIF($C$15:C49,C49)-1 -> 72 | E49: GCE vs CLE | F49: -0.3337297588 | G49: 35 | H49: GCE vs YM | I49: 0.2663595848 | J49: 0.2663595848 | L49: 0.2663595848
A50: GCE | B50: =$H$2 -> PLE | C50: =RTD("cqg.rtd",,"StudyData", "Correlation("&A50&","&B50&",Period:="&$B$1&",InputChoice1:=Close,InputChoice2:=Close)", "FG", "", "Close",$B$2, "0", "all","", "","True","T")/100 -> 0.8993703882 | D50: =RANK(C50,$C$15:$C$114,0)+COUNTIF($C$15:C50,C50)-1 -> 4 | E50: GCE vs PLE | F50: 0.8993703882 | G50: 36 | H50: ENQ vs RBE | I50: 0.2655247191 | J50: 0.2655247191 | L50: 0.2655247191
A51: GCE | B51: =$I$2 -> RBE | C51: =RTD("cqg.rtd",,"StudyData", "Correlation("&A51&","&B51&",Period:="&$B$1&",InputChoice1:=Close,InputChoice2:=Close)", "FG", "", "Close",$B$2, "0", "all","", "","True","T")/100 -> -0.3196338358 | D51: =RANK(C51,$C$15:$C$114,0)+COUNTIF($C$15:C51,C51)-1 -> 71 | E51: GCE vs RBE | F51: -0.3196338358 | G51: 37 | H51: JY6 vs QFA | I51: 0.2378129253 | J51: 0.2378129253 | L51: 0.2378129253
A52: GCE | B52: =$J$2 -> NGE | C52: =RTD("cqg.rtd",,"StudyData", "Correlation("&A52&","&B52&",Period:="&$B$1&",InputChoice1:=Close,InputChoice2:=Close)", "FG", "", "Close",$B$2, "0", "all","", "","True","T")/100 -> -0.566523724 | D52: =RANK(C52,$C$15:$C$114,0)+COUNTIF($C$15:C52,C52)-1 -> 88 | E52: GCE vs NGE | F52: -0.566523724 | G52: 38 | H52: JY6 vs YM | I52: 0.2356219612 | J52: 0.2356219612 | L52: 0.2356219612
A53: GCE | B53: =$K$2 -> TFE | C53: =RTD("cqg.rtd",,"StudyData", "Correlation("&A53&","&B53&",Period:="&$B$1&",InputChoice1:=Close,InputChoice2:=Close)", "FG", "", "Close",$B$2, "0", "all","", "","True","T")/100 -> 0.328701677 | D53: =RANK(C53,$C$15:$C$114,0)+COUNTIF($C$15:C53,C53)-1 -> 32 | E53: GCE vs TFE | F53: 0.328701677 | G53: 39 | H53: DXE vs YM | I53: 0.2284975337 | J53: 0.2284975337 | L53: 0.2284975337
A54: GCE | B54: =$L$2 -> QFA | C54: =RTD("cqg.rtd",,"StudyData", "Correlation("&A54&","&B54&",Period:="&$B$1&",InputChoice1:=Close,InputChoice2:=Close)", "FG", "", "Close",$B$2, "0", "all","", "","True","T")/100 -> 0.2051516231 | D54: =RANK(C54,$C$15:$C$114,0)+COUNTIF($C$15:C54,C54)-1 -> 41 | E54: GCE vs QFA | F54: 0.2051516231 | G54: 40 | H54: EP vs DSX | I54: 0.2229961927 | J54: 0.2229961927 | L54: 0.2229961927
A55: =$A$7 -> DXE | B55: =$C$2 -> DD | C55: =RTD("cqg.rtd",,"StudyData", "Correlation("&A55&","&B55&",Period:="&$B$1&",InputChoice1:=Close,InputChoice2:=Close)", "FG", "", "Close",$B$2, "0", "all","", "","True","T")/100 -> 0.8196848506 | D55: =RANK(C55,$C$15:$C$114,0)+COUNTIF($C$15:C55,C55)-1 -> 10 | E55: DXE vs DD | F55: 0.8196848506 | G55: 41 | H55: GCE vs QFA | I55: 0.2051516231 | J55: 0.2051516231 | L55: 0.2051516231
A56: =$A$7 -> DXE | B56: =$D$2 -> DSX | C56: =RTD("cqg.rtd",,"StudyData", "Correlation("&A56&","&B56&",Period:="&$B$1&",InputChoice1:=Close,InputChoice2:=Close)", "FG", "", "Close",$B$2, "0", "all","", "","True","T")/100 -> 0.7340567003 | D56: =RANK(C56,$C$15:$C$114,0)+COUNTIF($C$15:C56,C56)-1 -> 13 | E56: DXE vs DSX | F56: 0.7340567003 | G56: 42 | H56: MX6 vs TFE | I56: 0.184834262 | J56: 0.184834262 | L56: 0.184834262
A57: DXE | B57: =$E$2 -> YM | C57: =RTD("cqg.rtd",,"StudyData", "Correlation("&A57&","&B57&",Period:="&$B$1&",InputChoice1:=Close,InputChoice2:=Close)", "FG", "", "Close",$B$2, "0", "all","", "","True","T")/100 -> 0.2284975337 | D57: =RANK(C57,$C$15:$C$114,0)+COUNTIF($C$15:C57,C57)-1 -> 39 | E57: DXE vs YM | F57: 0.2284975337 | G57: 43 | H57: EP vs RBE | I57: 0.1752690711 | J57: 0.1752690711 | L57: 0.1752690711
A58: DXE | B58: =$F$2 -> PIL | C58: =RTD("cqg.rtd",,"StudyData", "Correlation("&A58&","&B58&",Period:="&$B$1&",InputChoice1:=Close,InputChoice2:=Close)", "FG", "", "Close",$B$2, "0", "all","", "","True","T")/100 -> 0.8230206714 | D58: =RANK(C58,$C$15:$C$114,0)+COUNTIF($C$15:C58,C58)-1 -> 9 | E58: DXE vs PIL | F58: 0.8230206714 | G58: 44 | H58: JY6 vs DSX | I58: 0.1737933167 | J58: 0.1737933167 | L58: 0.1737933167
A59: DXE | B59: =$G$2 -> CLE | C59: =RTD("cqg.rtd",,"StudyData", "Correlation("&A59&","&B59&",Period:="&$B$1&",InputChoice1:=Close,InputChoice2:=Close)", "FG", "", "Close",$B$2, "0", "all","", "","True","T")/100 -> -0.9015521862 | D59: =RANK(C59,$C$15:$C$114,0)+COUNTIF($C$15:C59,C59)-1 -> 99 | E59: DXE vs CLE | F59: -0.9015521862 | G59: 45 | H59: MX6 vs YM | I59: 0.1698779146 | J59: 0.1698779146 | L59: 0.1698779146
A60: DXE | B60: =$H$2 -> PLE | C60: =RTD("cqg.rtd",,"StudyData", "Correlation("&A60&","&B60&",Period:="&$B$1&",InputChoice1:=Close,InputChoice2:=Close)", "FG", "", "Close",$B$2, "0", "all","", "","True","T")/100 -> -0.2171962387 | D60: =RANK(C60,$C$15:$C$114,0)+COUNTIF($C$15:C60,C60)-1 -> 65 | E60: DXE vs PLE | F60: -0.2171962387 | G60: 46 | H60: ENQ vs DD | I60: 0.1485265797 | J60: 0.1485265797 | L60: 0.1485265797
A61: DXE | B61: =$I$2 -> RBE | C61: =RTD("cqg.rtd",,"StudyData", "Correlation("&A61&","&B61&",Period:="&$B$1&",InputChoice1:=Close,InputChoice2:=Close)", "FG", "", "Close",$B$2, "0", "all","", "","True","T")/100 -> -0.8632805696 | D61: =RANK(C61,$C$15:$C$114,0)+COUNTIF($C$15:C61,C61)-1 -> 98 | E61: DXE vs RBE | F61: -0.8632805696 | G61: 47 | H61: DA6 vs YM | I61: 0.142852722 | J61: 0.142852722 | L61: 0.142852722
A62: DXE | B62: =$J$2 -> NGE | C62: =RTD("cqg.rtd",,"StudyData", "Correlation("&A62&","&B62&",Period:="&$B$1&",InputChoice1:=Close,InputChoice2:=Close)", "FG", "", "Close",$B$2, "0", "all","", "","True","T")/100 -> -0.5120935962 | D62: =RANK(C62,$C$15:$C$114,0)+COUNTIF($C$15:C62,C62)-1 -> 82 | E62: DXE vs NGE | F62: -0.5120935962 | G62: 48 | H62: GCE vs DSX | I62: 0.1388292136 | J62: 0.1388292136 | L62: 0.1388292136
A63: DXE | B63: =$K$2 -> TFE | C63: =RTD("cqg.rtd",,"StudyData", "Correlation("&A63&","&B63&",Period:="&$B$1&",InputChoice1:=Close,InputChoice2:=Close)", "FG", "", "Close",$B$2, "0", "all","", "","True","T")/100 -> 0.8661741982 | D63: =RANK(C63,$C$15:$C$114,0)+COUNTIF($C$15:C63,C63)-1 -> 6 | E63: DXE vs TFE | F63: 0.8661741982 | G63: 49 | H63: EP vs DD | I63: 0.1361500787 | J63: 0.1361500787 | L63: 0.1361500787
A64: DXE | B64: =$L$2 -> QFA | C64: =RTD("cqg.rtd",,"StudyData", "Correlation("&A64&","&B64&",Period:="&$B$1&",InputChoice1:=Close,InputChoice2:=Close)", "FG", "", "Close",$B$2, "0", "all","", "","True","T")/100 -> 0.7528931259 | D64: =RANK(C64,$C$15:$C$114,0)+COUNTIF($C$15:C64,C64)-1 -> 12 | E64: DXE vs QFA | F64: 0.7528931259 | G64: 50 | H64: EU6 vs PLE | I64: 0.1282061705 | J64: 0.1282061705 | L64: 0.1282061705
A65: =$A$8 -> EU6 | B65: =$C$2 -> DD | C65: =RTD("cqg.rtd",,"StudyData", "Correlation("&A65&","&B65&",Period:="&$B$1&",InputChoice1:=Close,InputChoice2:=Close)", "FG", "", "Close",$B$2, "0", "all","", "","True","T")/100 -> -0.8346359604 | D65: =RANK(C65,$C$15:$C$114,0)+COUNTIF($C$15:C65,C65)-1 -> 96 | E65: EU6 vs DD | F65: -0.8346359604 | G65: 51 | H65: GCE vs DD | I65: 0.1221561015 | J65: 0.1221561015 | L65: 0.1221561015
A66: =$A$8 -> EU6 | B66: =$D$2 -> DSX | C66: =RTD("cqg.rtd",,"StudyData", "Correlation("&A66&","&B66&",Period:="&$B$1&",InputChoice1:=Close,InputChoice2:=Close)", "FG", "", "Close",$B$2, "0", "all","", "","True","T")/100 -> -0.7738761912 | D66: =RANK(C66,$C$15:$C$114,0)+COUNTIF($C$15:C66,C66)-1 -> 92 | E66: EU6 vs DSX | F66: -0.7738761912 | G66: 52 | H66: MX6 vs RBE | I66: 0.1148846539 | J66: 0.1148846539 | L66: 0.1148846539
A67: EU6 | B67: =$E$2 -> YM | C67: =RTD("cqg.rtd",,"StudyData", "Correlation("&A67&","&B67&",Period:="&$B$1&",InputChoice1:=Close,InputChoice2:=Close)", "FG", "", "Close",$B$2, "0", "all","", "","True","T")/100 -> -0.2859883551 | D67: =RANK(C67,$C$15:$C$114,0)+COUNTIF($C$15:C67,C67)-1 -> 70 | E67: EU6 vs YM | F67: -0.2859883551 | G67: 53 | H67: GCE vs PIL | I67: 0.0976633377 | J67: 0.0976633377 | L67: 0.0976633377
A68: EU6 | B68: =$F$2 -> PIL | C68: =RTD("cqg.rtd",,"StudyData", "Correlation("&A68&","&B68&",Period:="&$B$1&",InputChoice1:=Close,InputChoice2:=Close)", "FG", "", "Close",$B$2, "0", "all","", "","True","T")/100 -> -0.8582954311 | D68: =RANK(C68,$C$15:$C$114,0)+COUNTIF($C$15:C68,C68)-1 -> 97 | E68: EU6 vs PIL | F68: -0.8582954311 | G68: 54 | H68: ENQ vs PLE | I68: 0.0660410024 | J68: 0.0660410024 | L68: 0.0660410024
A69: EU6 | B69: =$G$2 -> CLE | C69: =RTD("cqg.rtd",,"StudyData", "Correlation("&A69&","&B69&",Period:="&$B$1&",InputChoice1:=Close,InputChoice2:=Close)", "FG", "", "Close",$B$2, "0", "all","", "","True","T")/100 -> 0.9399985697 | D69: =RANK(C69,$C$15:$C$114,0)+COUNTIF($C$15:C69,C69)-1 -> 3 | E69: EU6 vs CLE | F69: 0.9399985697 | G69: 55 | H69: JY6 vs PIL | I69: 0.0590846122 | J69: 0.0590846122 | L69: 0.0590846122
A70: EU6 | B70: =$H$2 -> PLE | C70: =RTD("cqg.rtd",,"StudyData", "Correlation("&A70&","&B70&",Period:="&$B$1&",InputChoice1:=Close,InputChoice2:=Close)", "FG", "", "Close",$B$2, "0", "all","", "","True","T")/100 -> 0.1282061705 | D70: =RANK(C70,$C$15:$C$114,0)+COUNTIF($C$15:C70,C70)-1 -> 50 | E70: EU6 vs PLE | F70: 0.1282061705 | G70: 56 | H70: JY6 vs RBE | I70: 0.0412950262 | J70: 0.0412950262 | L70: 0.0412950262
A71: EU6 | B71: =$I$2 -> RBE | C71: =RTD("cqg.rtd",,"StudyData", "Correlation("&A71&","&B71&",Period:="&$B$1&",InputChoice1:=Close,InputChoice2:=Close)", "FG", "", "Close",$B$2, "0", "all","", "","True","T")/100 -> 0.8487254294 | D71: =RANK(C71,$C$15:$C$114,0)+COUNTIF($C$15:C71,C71)-1 -> 8 | E71: EU6 vs RBE | F71: 0.8487254294 | G71: 57 | H71: JY6 vs DD | I71: 0.0140909001 | J71: 0.0140909001 | L71: 0.0140909001
A72: EU6 | B72: =$J$2 -> NGE | C72: =RTD("cqg.rtd",,"StudyData", "Correlation("&A72&","&B72&",Period:="&$B$1&",InputChoice1:=Close,InputChoice2:=Close)", "FG", "", "Close",$B$2, "0", "all","", "","True","T")/100 -> 0.6411644428 | D72: =RANK(C72,$C$15:$C$114,0)+COUNTIF($C$15:C72,C72)-1 -> 15 | E72: EU6 vs NGE | F72: 0.6411644428 | G72: 58 | H72: MX6 vs CLE | I72: -0.0346235099 | J72: 0.0346235099 | K72: 0.0346235099 | L72: -0.0346235099
A73: EU6 | B73: =$K$2 -> TFE | C73: =RTD("cqg.rtd",,"StudyData", "Correlation("&A73&","&B73&",Period:="&$B$1&",InputChoice1:=Close,InputChoice2:=Close)", "FG", "", "Close",$B$2, "0", "all","", "","True","T")/100 -> -0.9236491644 | D73: =RANK(C73,$C$15:$C$114,0)+COUNTIF($C$15:C73,C73)-1 -> 100 | E73: EU6 vs TFE | F73: -0.9236491644 | G73: 59 | H73: BP6 vs YM | I73: -0.044355273 | J73: 0.044355273 | K73: 0.044355273 | L73: -0.044355273
A74: EU6 | B74: =$L$2 -> QFA | C74: =RTD("cqg.rtd",,"StudyData", "Correlation("&A74&","&B74&",Period:="&$B$1&",InputChoice1:=Close,InputChoice2:=Close)", "FG", "", "Close",$B$2, "0", "all","", "","True","T")/100 -> -0.8125673723 | D74: =RANK(C74,$C$15:$C$114,0)+COUNTIF($C$15:C74,C74)-1 -> 95 | E74: EU6 vs QFA | F74: -0.8125673723 | G74: 60 | H74: EP vs PLE | I74: -0.0958997522 | J74: 0.0958997522 | K74: 0.0958997522 | L74: -0.0958997522
A75: =$A$9 -> JY6 | B75: =$C$2 -> DD | C75: =RTD("cqg.rtd",,"StudyData", "Correlation("&A75&","&B75&",Period:="&$B$1&",InputChoice1:=Close,InputChoice2:=Close)", "FG", "", "Close",$B$2, "0", "all","", "","True","T")/100 -> 0.0140909001 | D75: =RANK(C75,$C$15:$C$114,0)+COUNTIF($C$15:C75,C75)-1 -> 57 | E75: JY6 vs DD | F75: 0.0140909001 | G75: 61 | H75: BP6 vs NGE | I75: -0.1064017152 | J75: 0.1064017152 | K75: 0.1064017152 | L75: -0.1064017152
A76: =$A$9 -> JY6 | B76: =$D$2 -> DSX | C76: =RTD("cqg.rtd",,"StudyData", "Correlation("&A76&","&B76&",Period:="&$B$1&",InputChoice1:=Close,InputChoice2:=Close)", "FG", "", "Close",$B$2, "0", "all","", "","True","T")/100 -> 0.1737933167 | D76: =RANK(C76,$C$15:$C$114,0)+COUNTIF($C$15:C76,C76)-1 -> 44 | E76: JY6 vs DSX | F76: 0.1737933167 | G76: 62 | H76: DA6 vs NGE | I76: -0.1118109697 | J76: 0.1118109697 | K76: 0.1118109697 | L76: -0.1118109697
A77: JY6 | B77: =$E$2 -> YM | C77: =RTD("cqg.rtd",,"StudyData", "Correlation("&A77&","&B77&",Period:="&$B$1&",InputChoice1:=Close,InputChoice2:=Close)", "FG", "", "Close",$B$2, "0", "all","", "","True","T")/100 -> 0.2356219612 | D77: =RANK(C77,$C$15:$C$114,0)+COUNTIF($C$15:C77,C77)-1 -> 38 | E77: JY6 vs YM | F77: 0.2356219612 | G77: 63 | H77: EMD vs PLE | I77: -0.1520607217 | J77: 0.1520607217 | K77: 0.1520607217 | L77: -0.1520607217
A78: JY6 | B78: =$F$2 -> PIL | C78: =RTD("cqg.rtd",,"StudyData", "Correlation("&A78&","&B78&",Period:="&$B$1&",InputChoice1:=Close,InputChoice2:=Close)", "FG", "", "Close",$B$2, "0", "all","", "","True","T")/100 -> 0.0590846122 | D78: =RANK(C78,$C$15:$C$114,0)+COUNTIF($C$15:C78,C78)-1 -> 55 | E78: JY6 vs PIL | F78: 0.0590846122 | G78: 64 | H78: MX6 vs QFA | I78: -0.1702279231 | J78: 0.1702279231 | K78: 0.1702279231 | L78: -0.1702279231
A79: JY6 | B79: =$G$2 -> CLE | C79: =RTD("cqg.rtd",,"StudyData", "Correlation("&A79&","&B79&",Period:="&$B$1&",InputChoice1:=Close,InputChoice2:=Close)", "FG", "", "Close",$B$2, "0", "all","", "","True","T")/100 -> -0.2834675667 | D79: =RANK(C79,$C$15:$C$114,0)+COUNTIF($C$15:C79,C79)-1 -> 69 | E79: JY6 vs CLE | F79: -0.2834675667 | G79: 65 | H79: DXE vs PLE | I79: -0.2171962387 | J79: 0.2171962387 | K79: 0.2171962387 | L79: -0.2171962387
A80: JY6 | B80: =$H$2 -> PLE | C80: =RTD("cqg.rtd",,"StudyData", "Correlation("&A80&","&B80&",Period:="&$B$1&",InputChoice1:=Close,InputChoice2:=Close)", "FG", "", "Close",$B$2, "0", "all","", "","True","T")/100 -> 0.3089766489 | D80: =RANK(C80,$C$15:$C$114,0)+COUNTIF($C$15:C80,C80)-1 -> 33 | E80: =A80&" vs "&B80 -> JY6 vs PLE | F80: =C80 -> 0.3089766489 | G80: 66 | H80: =IFERROR(VLOOKUP(G80,$D$15:$E$114,2,FALSE),"") -> EP vs CLE | I80: =IFERROR(VLOOKUP(G80,$D$15:$F$114,3,FALSE),"") -> -0.2403307442 | J80: =IF(I80>0,I80,I80*-1) -> 0.2403307442 | K80: =IF(I80<0,I80*-1,"") -> 0.2403307442 | L80: =IF(K80="",J80,J80*-1) -> -0.2403307442
A81: JY6 | B81: =$I$2 -> RBE | C81: =RTD("cqg.rtd",,"StudyData", "Correlation("&A81&","&B81&",Period:="&$B$1&",InputChoice1:=Close,InputChoice2:=Close)", "FG", "", "Close",$B$2, "0", "all","", "","True","T")/100 -> 0.0412950262 | D81: =RANK(C81,$C$15:$C$114,0)+COUNTIF($C$15:C81,C81)-1 -> 56 | E81: JY6 vs RBE | F81: 0.0412950262 | G81: =G80+1 -> 67 | H81: EP vs NGE | I81: -0.2532428907 | J81: 0.2532428907 | K81: 0.2532428907 | L81: -0.2532428907
A82: JY6 | B82: =$J$2 -> NGE | C82: =RTD("cqg.rtd",,"StudyData", "Correlation("&A82&","&B82&",Period:="&$B$1&",InputChoice1:=Close,InputChoice2:=Close)", "FG", "", "Close",$B$2, "0", "all","", "","True","T")/100 -> -0.789524587 | D82: =RANK(C82,$C$15:$C$114,0)+COUNTIF($C$15:C82,C82)-1 -> 94 | E82: JY6 vs NGE | F82: -0.789524587 | G82: 68 | H82: ENQ vs CLE | I82: -0.2658685726 | J82: 0.2658685726 | K82: 0.2658685726 | L82: -0.2658685726
A83: JY6 | B83: =$K$2 -> TFE | C83: =RTD("cqg.rtd",,"StudyData", "Correlation("&A83&","&B83&",Period:="&$B$1&",InputChoice1:=Close,InputChoice2:=Close)", "FG", "", "Close",$B$2, "0", "all","", "","True","T")/100 -> 0.3897790886 | D83: =RANK(C83,$C$15:$C$114,0)+COUNTIF($C$15:C83,C83)-1 -> 27 | E83: JY6 vs TFE | F83: 0.3897790886 | G83: 69 | H83: JY6 vs CLE | I83: -0.2834675667 | J83: 0.2834675667 | K83: 0.2834675667 | L83: -0.2834675667
A84: JY6 | B84: =$L$2 -> QFA | C84: =RTD("cqg.rtd",,"StudyData", "Correlation("&A84&","&B84&",Period:="&$B$1&",InputChoice1:=Close,InputChoice2:=Close)", "FG", "", "Close",$B$2, "0", "all","", "","True","T")/100 -> 0.2378129253 | D84: =RANK(C84,$C$15:$C$114,0)+COUNTIF($C$15:C84,C84)-1 -> 37 | E84: JY6 vs QFA | F84: 0.2378129253 | G84: 70 | H84: EU6 vs YM | I84: -0.2859883551 | J84: 0.2859883551 | K84: 0.2859883551 | L84: -0.2859883551
A85: =$A$10 -> DA6 | B85: =$C$2 -> DD | C85: =RTD("cqg.rtd",,"StudyData", "Correlation("&A85&","&B85&",Period:="&$B$1&",InputChoice1:=Close,InputChoice2:=Close)", "FG", "", "Close",$B$2, "0", "all","", "","True","T")/100 -> -0.6048081676 | D85: =RANK(C85,$C$15:$C$114,0)+COUNTIF($C$15:C85,C85)-1 -> 90 | E85: DA6 vs DD | F85: -0.6048081676 | G85: 71 | H85: GCE vs RBE | I85: -0.3196338358 | J85: 0.3196338358 | K85: 0.3196338358 | L85: -0.3196338358
A86: =$A$10 -> DA6 | B86: =$D$2 -> DSX | C86: =RTD("cqg.rtd",,"StudyData", "Correlation("&A86&","&B86&",Period:="&$B$1&",InputChoice1:=Close,InputChoice2:=Close)", "FG", "", "Close",$B$2, "0", "all","", "","True","T")/100 -> -0.4602335534 | D86: =RANK(C86,$C$15:$C$114,0)+COUNTIF($C$15:C86,C86)-1 -> 80 | E86: DA6 vs DSX | F86: -0.4602335534 | G86: 72 | H86: GCE vs CLE | I86: -0.3337297588 | J86: 0.3337297588 | K86: 0.3337297588 | L86: -0.3337297588
A87: DA6 | B87: =$E$2 -> YM | C87: =RTD("cqg.rtd",,"StudyData", "Correlation("&A87&","&B87&",Period:="&$B$1&",InputChoice1:=Close,InputChoice2:=Close)", "FG", "", "Close",$B$2, "0", "all","", "","True","T")/100 -> 0.142852722 | D87: =RANK(C87,$C$15:$C$114,0)+COUNTIF($C$15:C87,C87)-1 -> 47 | E87: DA6 vs YM | F87: 0.142852722 | G87: 73 | H87: DA6 vs TFE | I87: -0.3348921954 | J87: 0.3348921954 | K87: 0.3348921954 | L87: -0.3348921954
A88: DA6 | B88: =$F$2 -> PIL | C88: =RTD("cqg.rtd",,"StudyData", "Correlation("&A88&","&B88&",Period:="&$B$1&",InputChoice1:=Close,InputChoice2:=Close)", "FG", "", "Close",$B$2, "0", "all","", "","True","T")/100 -> -0.5221539068 | D88: =RANK(C88,$C$15:$C$114,0)+COUNTIF($C$15:C88,C88)-1 -> 83 | E88: DA6 vs PIL | F88: -0.5221539068 | G88: 74 | H88: MX6 vs DSX | I88: -0.341354294 | J88: 0.341354294 | K88: 0.341354294 | L88: -0.341354294
A89: DA6 | B89: =$G$2 -> CLE | C89: =RTD("cqg.rtd",,"StudyData", "Correlation("&A89&","&B89&",Period:="&$B$1&",InputChoice1:=Close,InputChoice2:=Close)", "FG", "", "Close",$B$2, "0", "all","", "","True","T")/100 -> 0.3874033988 | D89: =RANK(C89,$C$15:$C$114,0)+COUNTIF($C$15:C89,C89)-1 -> 29 | E89: DA6 vs CLE | F89: 0.3874033988 | G89: 75 | H89: MX6 vs PIL | I89: -0.3547582042 | J89: 0.3547582042 | K89: 0.3547582042 | L89: -0.3547582042
A90: DA6 | B90: =$H$2 -> PLE | C90: =RTD("cqg.rtd",,"StudyData", "Correlation("&A90&","&B90&",Period:="&$B$1&",InputChoice1:=Close,InputChoice2:=Close)", "FG", "", "Close",$B$2, "0", "all","", "","True","T")/100 -> 0.5234829112 | D90: =RANK(C90,$C$15:$C$114,0)+COUNTIF($C$15:C90,C90)-1 -> 21 | E90: DA6 vs PLE | F90: 0.5234829112 | G90: 76 | H90: DA6 vs QFA | I90: -0.4112950053 | J90: 0.4112950053 | K90: 0.4112950053 | L90: -0.4112950053
A91: DA6 | B91: =$I$2 -> RBE | C91: =RTD("cqg.rtd",,"StudyData", "Correlation("&A91&","&B91&",Period:="&$B$1&",InputChoice1:=Close,InputChoice2:=Close)", "FG", "", "Close",$B$2, "0", "all","", "","True","T")/100 -> 0.5525345005 | D91: =RANK(C91,$C$15:$C$114,0)+COUNTIF($C$15:C91,C91)-1 -> 20 | E91: DA6 vs RBE | F91: 0.5525345005 | G91: 77 | H91: BP6 vs TFE | I91: -0.4220065309 | J91: 0.4220065309 | K91: 0.4220065309 | L91: -0.4220065309
A92: DA6 | B92: =$J$2 -> NGE | C92: =RTD("cqg.rtd",,"StudyData", "Correlation("&A92&","&B92&",Period:="&$B$1&",InputChoice1:=Close,InputChoice2:=Close)", "FG", "", "Close",$B$2, "0", "all","", "","True","T")/100 -> -0.1118109697 | D92: =RANK(C92,$C$15:$C$114,0)+COUNTIF($C$15:C92,C92)-1 -> 62 | E92: DA6 vs NGE | F92: -0.1118109697 | G92: 78 | H92: BP6 vs DSX | I92: -0.4454521933 | J92: 0.4454521933 | K92: 0.4454521933 | L92: -0.4454521933
A93: DA6 | B93: =$K$2 -> TFE | C93: =RTD("cqg.rtd",,"StudyData", "Correlation("&A93&","&B93&",Period:="&$B$1&",InputChoice1:=Close,InputChoice2:=Close)", "FG", "", "Close",$B$2, "0", "all","", "","True","T")/100 -> -0.3348921954 | D93: =RANK(C93,$C$15:$C$114,0)+COUNTIF($C$15:C93,C93)-1 -> 73 | E93: DA6 vs TFE | F93: -0.3348921954 | G93: 79 | H93: BP6 vs QFA | I93: -0.4469827138 | J93: 0.4469827138 | K93: 0.4469827138 | L93: -0.4469827138
A94: DA6 | B94: =$L$2 -> QFA | C94: =RTD("cqg.rtd",,"StudyData", "Correlation("&A94&","&B94&",Period:="&$B$1&",InputChoice1:=Close,InputChoice2:=Close)", "FG", "", "Close",$B$2, "0", "all","", "","True","T")/100 -> -0.4112950053 | D94: =RANK(C94,$C$15:$C$114,0)+COUNTIF($C$15:C94,C94)-1 -> 76 | E94: DA6 vs QFA | F94: -0.4112950053 | G94: 80 | H94: DA6 vs DSX | I94: -0.4602335534 | J94: 0.4602335534 | K94: 0.4602335534 | L94: -0.4602335534
A95: =$A$11 -> BP6 | B95: =$C$2 -> DD | C95: =RTD("cqg.rtd",,"StudyData", "Correlation("&A95&","&B95&",Period:="&$B$1&",InputChoice1:=Close,InputChoice2:=Close)", "FG", "", "Close",$B$2, "0", "all","", "","True","T")/100 -> -0.6175438615 | D95: =RANK(C95,$C$15:$C$114,0)+COUNTIF($C$15:C95,C95)-1 -> 91 | E95: BP6 vs DD | F95: -0.6175438615 | G95: 81 | H95: MX6 vs DD | I95: -0.511356083 | J95: 0.511356083 | K95: 0.511356083 | L95: -0.511356083
A96: =$A$11 -> BP6 | B96: =$D$2 -> DSX | C96: =RTD("cqg.rtd",,"StudyData", "Correlation("&A96&","&B96&",Period:="&$B$1&",InputChoice1:=Close,InputChoice2:=Close)", "FG", "", "Close",$B$2, "0", "all","", "","True","T")/100 -> -0.4454521933 | D96: =RANK(C96,$C$15:$C$114,0)+COUNTIF($C$15:C96,C96)-1 -> 78 | E96: BP6 vs DSX | F96: -0.4454521933 | G96: 82 | H96: DXE vs NGE | I96: -0.5120935962 | J96: 0.5120935962 | K96: 0.5120935962 | L96: -0.5120935962
A97: BP6 | B97: =$E$2 -> YM | C97: =RTD("cqg.rtd",,"StudyData", "Correlation("&A97&","&B97&",Period:="&$B$1&",InputChoice1:=Close,InputChoice2:=Close)", "FG", "", "Close",$B$2, "0", "all","", "","True","T")/100 -> -0.044355273 | D97: =RANK(C97,$C$15:$C$114,0)+COUNTIF($C$15:C97,C97)-1 -> 59 | E97: BP6 vs YM | F97: -0.044355273 | G97: 83 | H97: DA6 vs PIL | I97: -0.5221539068 | J97: 0.5221539068 | K97: 0.5221539068 | L97: -0.5221539068
A98: BP6 | B98: =$F$2 -> PIL | C98: =RTD("cqg.rtd",,"StudyData", "Correlation("&A98&","&B98&",Period:="&$B$1&",InputChoice1:=Close,InputChoice2:=Close)", "FG", "", "Close",$B$2, "0", "all","", "","True","T")/100 -> -0.5414582035 | D98: =RANK(C98,$C$15:$C$114,0)+COUNTIF($C$15:C98,C98)-1 -> 85 | E98: BP6 vs PIL | F98: -0.5414582035 | G98: 84 | H98: ENQ vs NGE | I98: -0.5273955259 | J98: 0.5273955259 | K98: 0.5273955259 | L98: -0.5273955259
A99: BP6 | B99: =$G$2 -> CLE | C99: =RTD("cqg.rtd",,"StudyData", "Correlation("&A99&","&B99&",Period:="&$B$1&",InputChoice1:=Close,InputChoice2:=Close)", "FG", "", "Close",$B$2, "0", "all","", "","True","T")/100 -> 0.4545778784 | D99: =RANK(C99,$C$15:$C$114,0)+COUNTIF($C$15:C99,C99)-1 -> 24 | E99: BP6 vs CLE | F99: 0.4545778784 | G99: 85 | H99: BP6 vs PIL | I99: -0.5414582035 | J99: 0.5414582035 | K99: 0.5414582035 | L99: -0.5414582035
A100: BP6 | B100: =$H$2 -> PLE | C100: =RTD("cqg.rtd",,"StudyData", "Correlation("&A100&","&B100&",Period:="&$B$1&",InputChoice1:=Close,InputChoice2:=Close)", "FG", "", "Close",$B$2, "0", "all","", "","True","T")/100 -> 0.3849366179 | D100: =RANK(C100,$C$15:$C$114,0)+COUNTIF($C$15:C100,C100)-1 -> 30 | E100: BP6 vs PLE | F100: 0.3849366179 | G100: 86 | H100: MX6 vs NGE | I100: -0.545408717 | J100: 0.545408717 | K100: 0.545408717 | L100: -0.545408717
A101: BP6 | B101: =$I$2 -> RBE | C101: =RTD("cqg.rtd",,"StudyData", "Correlation("&A101&","&B101&",Period:="&$B$1&",InputChoice1:=Close,InputChoice2:=Close)", "FG", "", "Close",$B$2, "0", "all","", "","True","T")/100 -> 0.6343058211 | D101: =RANK(C101,$C$15:$C$114,0)+COUNTIF($C$15:C101,C101)-1 -> 16 | E101: BP6 vs RBE | F101: 0.6343058211 | G101: 87 | H101: EMD vs RBE | I101: -0.564511093 | J101: 0.564511093 | K101: 0.564511093 | L101: -0.564511093
A102: BP6 | B102: =$J$2 -> NGE | C102: =RTD("cqg.rtd",,"StudyData", "Correlation("&A102&","&B102&",Period:="&$B$1&",InputChoice1:=Close,InputChoice2:=Close)", "FG", "", "Close",$B$2, "0", "all","", "","True","T")/100 -> -0.1064017152 | D102: =RANK(C102,$C$15:$C$114,0)+COUNTIF($C$15:C102,C102)-1 -> 61 | E102: BP6 vs NGE | F102: -0.1064017152 | G102: 88 | H102: GCE vs NGE | I102: -0.566523724 | J102: 0.566523724 | K102: 0.566523724 | L102: -0.566523724
A103: BP6 | B103: =$K$2 -> TFE | C103: =RTD("cqg.rtd",,"StudyData", "Correlation("&A103&","&B103&",Period:="&$B$1&",InputChoice1:=Close,InputChoice2:=Close)", "FG", "", "Close",$B$2, "0", "all","", "","True","T")/100 -> -0.4220065309 | D103: =RANK(C103,$C$15:$C$114,0)+COUNTIF($C$15:C103,C103)-1 -> 77 | E103: BP6 vs TFE | F103: -0.4220065309 | G103: 89 | H103: EMD vs NGE | I103: -0.5771775377 | J103: 0.5771775377 | K103: 0.5771775377 | L103: -0.5771775377
A104: BP6 | B104: =$L$2 -> QFA | C104: =RTD("cqg.rtd",,"StudyData", "Correlation("&A104&","&B104&",Period:="&$B$1&",InputChoice1:=Close,InputChoice2:=Close)", "FG", "", "Close",$B$2, "0", "all","", "","True","T")/100 -> -0.4469827138 | D104: =RANK(C104,$C$15:$C$114,0)+COUNTIF($C$15:C104,C104)-1 -> 79 | E104: BP6 vs QFA | F104: -0.4469827138 | G104: 90 | H104: DA6 vs DD | I104: -0.6048081676 | J104: 0.6048081676 | K104: 0.6048081676 | L104: -0.6048081676
A105: =$A$12 -> MX6 | B105: =$C$2 -> DD | C105: =RTD("cqg.rtd",,"StudyData", "Correlation("&A105&","&B105&",Period:="&$B$1&",InputChoice1:=Close,InputChoice2:=Close)", "FG", "", "Close",$B$2, "0", "all","", "","True","T")/100 -> -0.511356083 | D105: =RANK(C105,$C$15:$C$114,0)+COUNTIF($C$15:C105,C105)-1 -> 81 | E105: MX6 vs DD | F105: -0.511356083 | G105: 91 | H105: BP6 vs DD | I105: -0.6175438615 | J105: 0.6175438615 | K105: 0.6175438615 | L105: -0.6175438615
A106: =$A$12 -> MX6 | B106: =$D$2 -> DSX | C106: =RTD("cqg.rtd",,"StudyData", "Correlation("&A106&","&B106&",Period:="&$B$1&",InputChoice1:=Close,InputChoice2:=Close)", "FG", "", "Close",$B$2, "0", "all","", "","True","T")/100 -> -0.341354294 | D106: =RANK(C106,$C$15:$C$114,0)+COUNTIF($C$15:C106,C106)-1 -> 74 | E106: MX6 vs DSX | F106: -0.341354294 | G106: 92 | H106: EU6 vs DSX | I106: -0.7738761912 | J106: 0.7738761912 | K106: 0.7738761912 | L106: -0.7738761912
A107: MX6 | B107: =$E$2 -> YM | C107: =RTD("cqg.rtd",,"StudyData", "Correlation("&A107&","&B107&",Period:="&$B$1&",InputChoice1:=Close,InputChoice2:=Close)", "FG", "", "Close",$B$2, "0", "all","", "","True","T")/100 -> 0.1698779146 | D107: =RANK(C107,$C$15:$C$114,0)+COUNTIF($C$15:C107,C107)-1 -> 45 | E107: MX6 vs YM | F107: 0.1698779146 | G107: 93 | H107: EMD vs CLE | I107: -0.7766845611 | J107: 0.7766845611 | K107: 0.7766845611 | L107: -0.7766845611
A108: MX6 | B108: =$F$2 -> PIL | C108: =RTD("cqg.rtd",,"StudyData", "Correlation("&A108&","&B108&",Period:="&$B$1&",InputChoice1:=Close,InputChoice2:=Close)", "FG", "", "Close",$B$2, "0", "all","", "","True","T")/100 -> -0.3547582042 | D108: =RANK(C108,$C$15:$C$114,0)+COUNTIF($C$15:C108,C108)-1 -> 75 | E108: MX6 vs PIL | F108: -0.3547582042 | G108: 94 | H108: JY6 vs NGE | I108: -0.789524587 | J108: 0.789524587 | K108: 0.789524587 | L108: -0.789524587
A109: MX6 | B109: =$G$2 -> CLE | C109: =RTD("cqg.rtd",,"StudyData", "Correlation("&A109&","&B109&",Period:="&$B$1&",InputChoice1:=Close,InputChoice2:=Close)", "FG", "", "Close",$B$2, "0", "all","", "","True","T")/100 -> -0.0346235099 | D109: =RANK(C109,$C$15:$C$114,0)+COUNTIF($C$15:C109,C109)-1 -> 58 | E109: MX6 vs CLE | F109: -0.0346235099 | G109: 95 | H109: EU6 vs QFA | I109: -0.8125673723 | J109: 0.8125673723 | K109: 0.8125673723 | L109: -0.8125673723
A110: MX6 | B110: =$H$2 -> PLE | C110: =RTD("cqg.rtd",,"StudyData", "Correlation("&A110&","&B110&",Period:="&$B$1&",InputChoice1:=Close,InputChoice2:=Close)", "FG", "", "Close",$B$2, "0", "all","", "","True","T")/100 -> 0.5870908319 | D110: =RANK(C110,$C$15:$C$114,0)+COUNTIF($C$15:C110,C110)-1 -> 18 | E110: MX6 vs PLE | F110: 0.5870908319 | G110: 96 | H110: EU6 vs DD | I110: -0.8346359604 | J110: 0.8346359604 | K110: 0.8346359604 | L110: -0.8346359604
A111: MX6 | B111: =$I$2 -> RBE | C111: =RTD("cqg.rtd",,"StudyData", "Correlation("&A111&","&B111&",Period:="&$B$1&",InputChoice1:=Close,InputChoice2:=Close)", "FG", "", "Close",$B$2, "0", "all","", "","True","T")/100 -> 0.1148846539 | D111: =RANK(C111,$C$15:$C$114,0)+COUNTIF($C$15:C111,C111)-1 -> 52 | E111: MX6 vs RBE | F111: 0.1148846539 | G111: 97 | H111: EU6 vs PIL | I111: -0.8582954311 | J111: 0.8582954311 | K111: 0.8582954311 | L111: -0.8582954311
A112: MX6 | B112: =$J$2 -> NGE | C112: =RTD("cqg.rtd",,"StudyData", "Correlation("&A112&","&B112&",Period:="&$B$1&",InputChoice1:=Close,InputChoice2:=Close)", "FG", "", "Close",$B$2, "0", "all","", "","True","T")/100 -> -0.545408717 | D112: =RANK(C112,$C$15:$C$114,0)+COUNTIF($C$15:C112,C112)-1 -> 86 | E112: MX6 vs NGE | F112: -0.545408717 | G112: 98 | H112: DXE vs RBE | I112: -0.8632805696 | J112: 0.8632805696 | K112: 0.8632805696 | L112: -0.8632805696
A113: MX6 | B113: =$K$2 -> TFE | C113: =RTD("cqg.rtd",,"StudyData", "Correlation("&A113&","&B113&",Period:="&$B$1&",InputChoice1:=Close,InputChoice2:=Close)", "FG", "", "Close",$B$2, "0", "all","", "","True","T")/100 -> 0.184834262 | D113: =RANK(C113,$C$15:$C$114,0)+COUNTIF($C$15:C113,C113)-1 -> 42 | E113: MX6 vs TFE | F113: 0.184834262 | G113: 99 | H113: DXE vs CLE | I113: -0.9015521862 | J113: 0.9015521862 | K113: 0.9015521862 | L113: -0.9015521862
A114: MX6 | B114: =$L$2 -> QFA | C114: =RTD("cqg.rtd",,"StudyData", "Correlation("&A114&","&B114&",Period:="&$B$1&",InputChoice1:=Close,InputChoice2:=Close)", "FG", "", "Close",$B$2, "0", "all","", "","True","T")/100 -> -0.1702279231 | D114: =RANK(C114,$C$15:$C$114,0)+COUNTIF($C$15:C114,C114)-1 -> 64 | E114: MX6 vs QFA | F114: -0.1702279231 | G114: 100 | H114: EU6 vs TFE | I114: -0.9236491644 | J114: 0.9236491644 | K114: 0.9236491644 | L114: -0.9236491644
